Workbook

Sheet Sheet1
A8: X1 ~ N(0,1) | C8: X2 ~ N(0,1) | E8: X3 ~ N(0,1) | G8: X4 ~ N(0,1) | I8: X5 ~ N(0,1) | K8: X6 ~ N(0,1) | M8: X7 ~ N(0,1) | O8: X8 ~ N(0,1) | Q8: X12+X22+X32+X42+X52+X62+X72+X82
Q9: Boundaries | S9: Freq
A10: 0.04838722944 | B10: =NORMINV(A10,0,1) -> -1.66069629 | C10: 0.1075002551 | D10: =NORMINV(C10,0,1) -> -1.239932099 | E10: 0.0966822505 | F10: =NORMINV(E10,0,1) -> -1.30069025 | G10: 0.7898589969 | H10: =NORMINV(G10,0,1) -> 0.8059320912 | I10: 0.1015812755 | J10: =NORMINV(I10,0,1) -> -1.272592867 | K10: 0.5870248675 | L10: =NORMINV(K10,0,1) -> 0.2198984225 | M10: 0.9419905543 | N10: =NORMINV(M10,0,1) -> 1.571705391 | O10: 0.5029041171 | P10: =NORMINV(O10,0,1) -> 0.007279606348 | Q10: 0 | R10: =B10^2+D10^2+F10^2+H10^2+J10^2+L10^2+N10^2+P10^2 -> 10.77482419 | S10: 0 | AE10: =R10^2 -> 116.0968363
A11: 0.62746346 | B11: =NORMINV(A11,0,1) -> 0.3251426909 | C11: 0.3959251642 | D11: =NORMINV(C11,0,1) -> -0.2639086262 | E11: 0.0148049593 | F11: =NORMINV(E11,0,1) -> -2.175269608 | G11: 0.6623255014 | H11: =NORMINV(G11,0,1) -> 0.4188182076 | I11: 0.09483444691 | J11: =NORMINV(I11,0,1) -> -1.311559239 | K11: 0.1468044519 | L11: =NORMINV(K11,0,1) -> -1.050237562 | M11: 0.2308331728 | N11: =NORMINV(M11,0,1) -> -0.736105747 | O11: 0.8376432657 | P11: =NORMINV(O11,0,1) -> 0.984818018 | Q11: 1 | R11: =B11^2+D11^2+F11^2+H11^2+J11^2+L11^2+N11^2+P11^2 -> 9.417476865 | S11: 7 | AE11: =R11^2 -> 88.6888705
A12: 0.4297245145 | B12: -0.1770755726 | C12: 0.786937058 | D12: 0.7958385463 | E12: 0.671020329 | F12: 0.4427323478 | G12: 0.04730635881 | H12: -1.671551894 | I12: 0.1467521787 | J12: -1.050465037 | K12: 0.9659398198 | L12: 1.824209801 | M12: 0.7670763135 | N12: 0.7292522535 | O12: 0.577993691 | P12: 0.1967634967 | Q12: 2 | R12: 8.656555333 | S12: 35 | AE12: 74.93595023
A13: 0.8419721127 | B13: 1.002596107 | C13: 0.2825415134 | D13: -0.575307978 | E13: 0.9081237316 | F13: 1.329289319 | G13: 0.3227226734 | H13: -0.4600987423 | I13: 0.3334672451 | J13: -0.4303590341 | K13: 0.4506113529 | L13: -0.1241169145 | M13: 0.3875339031 | N13: -0.2857523498 | O13: 0.560738802 | P13: 0.1528426081 | Q13: 3 | R13: 3.620508345 | S13: 74 | AE13: 13.10808068
A14: 0.835637033 | B14: 0.9766833632 | C14: 0.4773077369 | D14: -0.05691177585 | E14: 0.2670649886 | F14: -0.6217139499 | G14: 0.8928970695 | H14: 1.242083214 | I14: 0.4334172606 | J14: -0.167680648 | K14: 0.8578638434 | L14: 1.070771214 | M14: 0.5261000991 | N14: 0.06546998716 | O14: 0.6886143088 | P14: 0.491926389 | Q14: 4 | R14: 4.307393973 | S14: 101 | AE14: 18.55364284
A15: 0.1009191275 | B15: -1.276331796 | C15: 0.7857702971 | D15: 0.7918306882 | E15: 0.9169868231 | F15: 1.385085406 | G15: 0.9306038618 | H15: 1.480303475 | I15: 0.09078156948 | J15: -1.33595758 | K15: 0.9898051023 | L15: 2.31909667 | M15: 0.04808461666 | N15: -1.66371582 | O15: 0.01415526867 | P15: -2.192956167 | Q15: 5 | R15: 21.10577775 | S15: 115 | AE15: 445.4538544
A16: 0.7537422776 | B16: 0.6863134888 | C16: 0.3695989251 | D16: -0.3329157897 | E16: 0.9744845033 | F16: 1.951219053 | G16: 0.7602935433 | H16: 0.7072471323 | I16: 0.4345455766 | J16: -0.1648130233 | K16: 0.7203851342 | L16: 0.5839859994 | M16: 0.8565817475 | N16: 1.065087125 | O16: 0.09752994776 | P16: -1.29575503 | Q16: 6 | R16: 8.070908089 | S16: 106 | AE16: 65.13955738
A17: 0.8867645264 | B17: 1.209499645 | C17: 0.5279641151 | D17: 0.07015314192 | E17: 0.2177019119 | F17: -0.7799780014 | G17: 0.880294323 | H17: 1.176459383 | I17: 0.8931827545 | J17: 1.243633473 | K17: 0.5869336128 | L17: 0.219664089 | M17: 0.7452383041 | N17: 0.6595800009 | O17: 0.1049132347 | P17: -1.254042744 | Q17: 7 | R17: 7.062778726 | S17: 101 | AE17: 49.88284334
A18: 0.9007226825 | B18: 1.285680369 | C18: 0.0108153224 | D18: -2.296791884 | E18: 0.9284183383 | F18: 1.464112094 | G18: 0.3805825114 | H18: -0.3039512618 | I18: 0.734983623 | J18: 0.6279560158 | K18: 0.4999224544 | L18: -0.0001943781022 | M18: 0.8243247867 | N18: 0.9319731015 | O18: 0.9977414012 | P18: 2.839586995 | Q18: 8 | R18: 18.49039452 | S18: 93 | AE18: 341.8946896
A19: 0.5572735071 | B19: 0.1440601327 | C19: 0.6259213686 | D19: 0.3210701075 | E19: 0.4126631021 | F19: -0.220699778 | G19: 0.236346364 | H19: -0.7181047071 | I19: 0.4939438105 | J19: -0.01518119904 | K19: 0.1605530977 | L19: -0.9921872407 | M19: 0.2893968821 | N19: -0.5551475163 | O19: 0.5118228197 | P19: 0.02963975343 | Q19: 9 | R19: 1.981955367 | S19: 82 | AE19: 3.928147078
A20: 0.6798451543 | B20: 0.4672658425 | C20: 0.7771242261 | D20: 0.7625169213 | E20: 0.2982466817 | F20: -0.5294499387 | G20: 0.7866695523 | H20: 0.7949185288 | I20: 0.5514748693 | J20: 0.1293884815 | K20: 0.1673696637 | L20: -0.9646117191 | M20: 0.974685967 | N20: 1.954618923 | O20: 0.5793808103 | P20: 0.2003096966 | Q20: 10 | R20: 6.519858386 | S20: 69 | AE20: 42.50855337
A21: 0.4729578495 | B21: -0.06783661164 | C21: 0.7714526653 | D21: 0.743639385 | E21: 0.06404232979 | F21: -1.521698436 | G21: 0.2203557491 | H21: -0.7709922956 | I21: 0.8131468296 | J21: 0.8895522774 | K21: 0.6182944775 | L21: 0.3010045236 | M21: 0.114802599 | N21: -1.201376474 | O21: 0.9848001003 | P21: 2.164841841 | Q21: 11 | R21: 10.4793492 | S21: 53 | AE21: 109.8167596
A22: 0.2986368537 | B22: -0.5283251086 | C22: 0.1321563125 | D22: -1.116255871 | E22: 0.1865162253 | F22: -0.8908075004 | G22: 0.3528298736 | H22: -0.3776915482 | I22: 0.4128355384 | J22: -0.2202569102 | K22: 0.5388965011 | L22: 0.09765405756 | M22: 0.7940010428 | N22: 0.8203828057 | O22: 0.631762445 | P22: 0.3365248573 | Q22: 12 | R22: 3.305669848 | S22: 41 | AE22: 10.92745315
A23: 0.1440485716 | B23: -1.062305225 | C23: 0.9564784765 | D23: 1.711206241 | E23: 0.4970120192 | F23: -0.00748982729 | G23: 0.5923093557 | H23: 0.2334895432 | I23: 0.3971556425 | J23: -0.2607163131 | K23: 0.8944610357 | L23: 1.250606909 | M23: 0.3952606916 | N23: -0.2656336294 | O23: 0.0387147665 | P23: -1.765799258 | Q23: 13 | R23: 8.931891539 | S23: 28 | AE23: 79.77868646
A24: 0.8279672265 | B24: 0.9461628191 | C24: 0.9517126679 | D24: 1.661691411 | E24: 0.7192721963 | F24: 0.5806807953 | G24: 0.1506653428 | H24: -1.033583993 | I24: 0.2815366387 | J24: -0.5782826925 | K24: 0.6631556153 | L24: 0.4210908137 | M24: 0.8624168038 | N24: 1.091242043 | O24: 0.9618397355 | P24: 1.772446137 | Q24: 14 | R24: 9.906031334 | S24: 29 | AE24: 98.12945679
A25: 0.553249836 | B25: 0.1338763801 | C25: 0.9989080429 | D25: 3.064010262 | E25: 0.02874898911 | F25: -1.899506002 | G25: 0.08271408081 | H25: -1.387044606 | I25: 0.5538697243 | J25: 0.135444362 | K25: 0.2884073257 | L25: -0.5580435423 | M25: 0.08564329147 | N25: -1.368081448 | O25: 0.1980190277 | P25: -0.8487183097 | Q25: 15 | R25: 17.85982495 | S25: 14 | AE25: 318.9733473
A26: 0.7337862849 | B26: 0.6243048031 | C26: 0.4461280704 | D26: -0.135449941 | E26: 0.859046638 | F26: 1.076045911 | G26: 0.1527177691 | H26: -1.024846677 | I26: 0.647942245 | J26: 0.3797708667 | K26: 0.3061458468 | L26: -0.5068049345 | M26: 0.2293793559 | N26: -0.7408923541 | O26: 0.1603185534 | P26: -0.9931494945 | Q26: 16 | R26: 4.552633239 | S26: 11 | AE26: 20.72646941
A27: 0.06052410603 | B27: -1.550388854 | C27: 0.275549531 | D27: -0.5961140152 | E27: 0.02946960926 | F27: -1.88864645 | G27: 0.2817569971 | H27: -0.5776299319 | I27: 0.5700093508 | J27: 0.1763979712 | K27: 0.5099493265 | L27: 0.02494184895 | M27: 0.2954245806 | N27: -0.5376058927 | O27: 0.1984077692 | P27: -0.8473222314 | Q27: 17 | R27: 7.69841267 | S27: 9 | AE27: 59.26555764
A28: 0.6627691388 | B28: 0.4200324855 | C28: 0.4615405202 | D28: -0.0965534309 | E28: 0.7217529416 | F28: 0.5880568768 | G28: 0.06498843431 | H28: -1.51419311 | I28: 0.3784540296 | J28: -0.30954359 | K28: 0.3149817586 | L28: -0.4817782001 | M28: 0.7930286527 | N28: 0.8169750357 | O28: 0.496676743 | P28: -0.008330266227 | Q28: 18 | R28: 3.81978659 | S28: 8 | AE28: 14.59076959
A29: 0.5461585522 | B29: 0.1159617003 | C29: 0.3183014393 | D29: -0.4724538452 | E29: 0.4717462063 | F29: -0.07088106605 | G29: 0.6417467594 | H29: 0.3631317324 | I29: 0.6666820049 | J29: 0.4307694841 | K29: 0.08805584908 | L29: -1.352824518 | M29: 0.6504971981 | N29: 0.3866631452 | O29: 0.8017599583 | P29: 0.8479243845 | Q29: 19 | R29: 3.257729206 | S29: 6 | AE29: 10.61279958
A30: 0.5131167769 | B30: 0.03288480999 | C30: 0.1913170218 | D30: -0.8730532686 | E30: 0.4287366271 | F30: -0.1795915306 | G30: 0.819613874 | H30: 0.9138945606 | I30: 0.3488120437 | J30: -0.3885296895 | K30: 0.8918194175 | L30: 1.23626207 | M30: 0.7147492766 | N30: 0.5673131466 | O30: 0.9743399024 | P30: 1.948792622 | Q30: 20 | R30: 7.429695923 | S30: 5 | AE30: 55.20038151
A31: 0.6983627081 | B31: 0.5196972788 | C31: 0.1798752546 | D31: -0.9158405929 | E31: 0.8743547201 | F31: 1.147220358 | G31: 0.4990862608 | H31: -0.002290406528 | I31: 0.5994800329 | J31: 0.2520014615 | K31: 0.04907119274 | L31: -1.653926805 | M31: 0.5495198965 | N31: 0.1244484588 | O31: 0.1306113005 | P31: -1.123506125 | Q31: 21 | R31: 6.501701094 | S31: 6 | AE31: 42.27211711
A32: 0.07176309824 | B32: -1.462785082 | C32: 0.5788856149 | D32: 0.1990434322 | E32: 0.7752323747 | F32: 0.7561900614 | G32: 0.008947908878 | H32: -2.367766677 | I32: 0.1438017488 | J32: -1.063393592 | K32: 0.05918842554 | L32: -1.561622902 | M32: 0.1501274705 | N32: -1.035886833 | O32: 0.8272634149 | P32: 0.9434062055 | Q32: 22 | R32: 13.89004975 | S32: 5 | AE32: 192.933482
A33: 0.601647377 | B33: 0.2576134531 | C33: 0.7252993584 | D33: 0.5986575307 | E33: 0.7969036102 | F33: 0.8306121309 | G33: 0.2720265388 | H33: -0.6066953967 | I33: 0.05935955048 | J33: -1.560172591 | K33: 0.02071905136 | L33: -2.039119498 | M33: 0.4710464478 | N33: -0.07263962286 | O33: 0.6784081459 | P33: 0.4632520544 | Q33: 23 | R33: 8.294777166 | S33: 1 | AE33: 68.80332823
A34: 0.749238193 | B34: 0.6720943803 | C34: 0.9432236552 | D34: 1.582424525 | E34: 0.2464773059 | F34: -0.6856170741 | G34: 0.7922999263 | H34: 0.8144273995 | I34: 0.3546172976 | J34: -0.3728842492 | K34: 0.8479802012 | L34: 1.027809179 | M34: 0.8275644183 | N34: 0.9445842649 | O34: 0.9891707301 | P34: 2.296303401 | Q34: 24 | R34: 11.44982411 | S34: 1 | AE34: 131.0984722
A35: 0.03223478794 | B35: -1.848918542 | C35: 0.2554541826 | D35: -0.6574239357 | E35: 0.2914940119 | F35: -0.5490253928 | G35: 0.240451932 | H35: -0.704849558 | I35: 0.2805505991 | J35: -0.5812066324 | K35: 0.1681376696 | L35: -0.9615507139 | M35: 0.7376857996 | N35: 0.6362271174 | O35: 0.4017926455 | P35: -0.24870977 | Q35: 25 | R35: 6.377970206 | S35: 0 | AE35: 40.67850395
A36: 0.1934378743 | B36: -0.8652970881 | C36: 0.6082523465 | D36: 0.2747669295 | E36: 0.162730515 | F36: -0.9832975207 | G36: 0.05657941103 | H36: -1.584153368 | I36: 0.2551310658 | J36: -0.6584295824 | K36: 0.9893425107 | L36: 2.302358228 | M36: 0.2557957768 | N36: -0.6563615034 | O36: 0.3166978955 | P36: -0.4769527178 | Q36: 26 | R36: 10.69332907 | S36: 0 | V36: Mean = | X36: =Q1010 -> 7.818745417 | Z36: Variance = | AB36: =S1010 -> 16.68168583 | AE36: 114.3472866
A37: 0.1167500019 | B37: -1.191391307 | C37: 0.1188886166 | D37: -1.180560827 | E37: 0.9676611423 | F37: 1.847479232 | G37: 0.5639464855 | H37: 0.1609826966 | I37: 0.5117485523 | J37: 0.02945351142 | K37: 0.618196249 | L37: 0.3007469005 | M37: 0.3935434818 | N37: -0.2700952665 | O37: 0.551169157 | P37: 0.1286157717 | Q37: 27 | R37: 6.433041733 | S37: 0 | AE37: 41.38402594
A38: 0.813549459 | B38: 0.891052358 | C38: 0.5673875213 | D38: 0.1697268496 | E38: 0.9844488502 | F38: 2.155761417 | G38: 0.8620967269 | H38: 1.089787989 | I38: 0.8883194327 | J38: 1.217639138 | K38: 0.1417302489 | L38: -1.072578005 | M38: 0.5915674567 | N38: 0.231578914 | O38: 0.5976943374 | P38: 0.2473836515 | Q38: 28 | R38: 9.405622766 | S38: 0 | AE38: 88.46573961
A39: 0.2604435682 | B39: -0.6419785099 | C39: 0.2181676626 | D39: -0.7783964597 | E39: 0.5768469572 | F39: 0.1938337167 | G39: 0.4443916082 | H39: -0.1398440397 | I39: 0.256836772 | J39: -0.653128339 | K39: 0.2783426046 | L39: -0.5877721954 | M39: 0.1011942625 | N39: -1.274776036 | O39: 0.1458019018 | P39: -1.054609836 | Q39: 29 | R39: 4.584473949 | S39: 0 | AE39: 21.01740139
A40: 0.4953837991 | B40: -0.01157135798 | C40: 0.4644966722 | D40: -0.08911144183 | E40: 0.05886894464 | F40: -1.564339377 | G40: 0.4547701478 | H40: -0.1136184065 | I40: 0.8440948129 | J40: 1.011430615 | K40: 0.9343624711 | L40: 1.509092845 | M40: 0.4487176538 | N40: -0.1289018567 | O40: 0.6259298921 | P40: 0.3210926028 | Q40: 30 | R40: 5.888210828 | S40: 0 | AE40: 34.67102675
A41: 0.5011954308 | B41: 0.002996505017 | C41: 0.5670013428 | D41: 0.1687448817 | E41: 0.2726540565 | F41: -0.6048056891 | G41: 0.5893449783 | H41: 0.225860342 | I41: 0.4413905144 | J41: -0.1474446959 | K41: 0.2062320709 | L41: -0.8195649845 | M41: 0.2144360542 | N41: -0.7911231891 | O41: 0.2496938705 | P41: -0.6754534116 | R41: 2.220826544 | S41: 0 | AE41: 4.932070537
A42: 0.03936356306 | B42: -1.758119808 | C42: 0.4225122333 | D42: -0.1954707086 | E42: 0.3392454982 | F42: -0.4145231776 | G42: 0.3759891391 | H42: -0.3160319226 | I42: 0.2597939372 | J42: -0.6439808155 | K42: 0.3583356738 | L42: -0.3629110291 | M42: 0.1799151301 | N42: -0.9156885727 | O42: 0.8734580874 | P42: 1.142891059 | R42: 6.092000939 | S42: 0 | AE42: 37.11247544
A43: 0.6955500841 | B43: 0.5116445051 | C43: 0.3044048548 | D43: -0.5117732562 | E43: 0.9531308413 | F43: 1.675999362 | G43: 0.3824506998 | H43: -0.2990506501 | I43: 0.9112120867 | J43: 1.348256722 | K43: 0.9363876581 | L43: 1.525137988 | M43: 0.4330750704 | N43: -0.168550599 | O43: 0.4544969797 | P43: -0.1143075983 | R43: 7.607414722 | S43: 0 | AE43: 57.87275876
A44: 0.102417767 | B44: -1.267894764 | C44: 0.5009511113 | D44: 0.002384084777 | E44: 0.8579958081 | F44: 1.071358236 | G44: 0.4513838887 | H44: -0.1221657163 | I44: 0.8245723844 | J44: 0.932931705 | K44: 0.2866433263 | L44: -0.5632176986 | M44: 0.4123037457 | N44: -0.221622852 | O44: 0.541885674 | P44: 0.1051854549 | R44: 4.018052161 | S44: 0 | AE44: 16.14474317
A45: 0.19303298 | B45: -0.8667738004 | C45: 0.8221399784 | D45: 0.9235511775 | E45: 0.3413379192 | F45: -0.4088144449 | G45: 0.4171307087 | H45: -0.2092393218 | I45: 0.919147253 | J45: 1.399358537 | K45: 0.4201414585 | L45: -0.2015316077 | M45: 0.6959922314 | N45: 0.5129081999 | O45: 0.2257034779 | P45: -0.7530714896 | R45: 4.644164737 | S45: 0 | AE45: 21.56826611
A46: 0.6750325561 | B46: 0.453852647 | C46: 0.813590467 | D46: 0.8912052544 | E46: 0.9850005507 | F46: 2.170104921 | G46: 0.6897510886 | H46: 0.4951449266 | I46: 0.8189553618 | J46: 0.9113912234 | K46: 0.1543516517 | L46: -1.017946665 | M46: 0.8683032393 | N46: 1.118406261 | O46: 0.02379840612 | P46: -1.980950614 | R46: 12.99660017 | S46: 0 | AE46: 168.911616
A47: 0.9049981833 | B47: 1.310568363 | C47: 0.9116877317 | D47: 1.351221353 | E47: 0.7104457617 | F47: 0.5546874283 | G47: 0.2998074293 | H47: -0.5249544464 | I47: 0.5064328909 | J47: 0.01612556504 | K47: 0.4851073027 | L47: -0.03733913085 | M47: 0.2187408209 | N47: -0.7764528639 | O47: 0.0183686018 | P47: -2.088672615 | R47: 9.093730481 | S47: 0 | AE47: 82.69593406
A48: 0.3747082353 | B48: -0.3194088898 | C48: 0.587549746 | D48: 0.2212464956 | E48: 0.7523108125 | F48: 0.6817795217 | G48: 0.3733859658 | H48: -0.3228987386 | I48: 0.4707947373 | J48: -0.07327224867 | K48: 0.08018165827 | L48: -1.403850688 | M48: 0.7528162599 | N48: 0.6833788512 | O48: 0.05559307337 | P48: -1.59288431 | R48: 5.700511617 | S48: 0 | AE48: 32.49583269
A49: 0.9242572784 | B49: 1.434304302 | C49: 0.08700227737 | D49: -1.359448363 | E49: 0.4096136093 | F49: -0.2285390283 | G49: 0.8789076805 | H49: 1.169543716 | I49: 0.9348258972 | J49: 1.512730198 | K49: 0.9704346657 | L49: 1.887220541 | M49: 0.8319253922 | N49: 0.9618017164 | O49: 0.3186144829 | P49: -0.4715766933 | R49: 12.32279241 | S49: 0 | AE49: 151.8512129
A50: 0.08707255125 | B50: -1.35900469 | C50: 0.6950289607 | D50: 0.5101561377 | E50: 0.7765113711 | F50: 0.7604640376 | G50: 0.8710705638 | H50: 1.131466318 | I50: 0.1588823199 | J50: -0.9990620371 | K50: 0.9607474208 | L50: 1.759426121 | M50: 0.2380916476 | N50: -0.7124546325 | O50: 0.09296578169 | P50: -1.322710822 | R50: 10.31653536 | S50: 0 | AE50: 106.4309019
A51: 0.1017395258 | B51: -1.27170191 | C51: 0.4892960787 | D51: -0.02683397183 | E51: 0.5968996286 | F51: 0.2453302351 | G51: 0.3058978319 | H51: -0.5075119357 | I51: 0.5757633448 | J51: 0.1910667333 | K51: 0.9440938234 | L51: 1.590099613 | M51: 0.02661192417 | N51: -1.933100258 | O51: 0.01716530323 | P51: -2.116167004 | R51: 12.71566377 | S51: 0 | AE51: 161.6881051
A52: 0.7359002233 | B52: 0.6307568005 | C52: 0.4389532208 | D52: -0.1536237091 | E52: 0.5599902272 | F52: 0.1509444381 | G52: 0.9549682736 | H52: 1.695063092 | I52: 0.2454693913 | J52: -0.6888164494 | K52: 0.3187006116 | L52: -0.4713354233 | M52: 0.8274939656 | N52: 0.9443084116 | O52: 0.6903064847 | P52: 0.4967192714 | R52: 5.152551089 | S52: 0 | AE52: 26.54878272
A53: 0.2364332676 | B53: -0.7178228293 | C53: 0.03010630608 | D53: -1.879233538 | E53: 0.8354523182 | F53: 0.9759376489 | G53: 0.5846002102 | H53: 0.2136761907 | I53: 0.9128038883 | J53: 1.358225242 | K53: 0.6584422588 | L53: 0.4082154827 | M53: 0.363019228 | N53: -0.3504000939 | O53: 0.771163702 | P53: 0.7426846983 | R53: 7.730676588 | S53: 0 | AE53: 59.7633605
A54: 0.2132887244 | B54: -0.7950619809 | C54: 0.6237735152 | D54: 0.3154065826 | E54: 0.2023643851 | F54: -0.8332056259 | G54: 0.6526746154 | H54: 0.392551497 | I54: 0.5689424872 | J54: 0.1736824567 | K54: 0.9360312819 | L54: 1.522285993 | M54: 0.6294292808 | N54: 0.3303421622 | O54: 0.9152497649 | P54: 1.373810662 | R54: 5.92393508 | S54: 0 | AE54: 35.09300683
A55: 0.7848585844 | B55: 0.7887077603 | C55: 0.6788924932 | D55: 0.4646040751 | E55: 0.4592331648 | F55: -0.1023657989 | G55: 0.5150407553 | H55: 0.03771051845 | I55: 0.563600421 | J55: 0.1601039901 | K55: 0.1503223181 | L55: -1.035051981 | M55: 0.1487416029 | N55: -1.041845736 | O55: 0.2605184317 | P55: -0.6417479298 | R55: 3.444066552 | S55: 0 | AE55: 11.86159441
A56: 0.7512403131 | B56: 0.6783980047 | C56: 0.1926737428 | D56: -0.8680855781 | E56: 0.8033118844 | F56: 0.8535105653 | G56: 0.9156742692 | H56: 1.376549861 | I56: 0.8779054284 | J56: 1.164579753 | K56: 0.5537748933 | L56: 0.1352044695 | M56: 0.8226771951 | N56: 0.9256159337 | O56: 0.07963186502 | P56: -1.407552132 | R56: 8.049660341 | S56: 0 | AE56: 64.7970316
A57: 0.2463212013 | B57: -0.6861121295 | C57: 0.05141544342 | D57: -1.631281729 | E57: 0.8645205498 | F57: 1.100856997 | G57: 0.1880779266 | H57: -0.8850014427 | I57: 0.4776539803 | J57: -0.05604248711 | K57: 0.6419401169 | L57: 0.3636494892 | M57: 0.5427527428 | N57: 0.1073711836 | O57: 0.4950332642 | P57: -0.01245008212 | R57: 5.274008903 | S57: 0 | AE57: 27.8151699
A58: 0.2659003139 | B58: -0.6252596961 | C58: 0.9624339938 | D58: 1.779657607 | E58: 0.08806008101 | F58: -1.352798031 | G58: 0.6354543567 | H58: 0.3463345761 | I58: 0.7379176021 | J58: 0.6369386655 | K58: 0.1693755984 | L58: -0.9566356331 | M58: 0.844379127 | N58: 1.01261991 | O58: 0.3181039691 | P58: -0.4730073461 | R58: 8.078118665 | S58: 0 | AE58: 65.25600117
A59: 0.6301976442 | B59: 0.3323768571 | C59: 0.7051473856 | D59: 0.5392632413 | E59: 0.1334449053 | F59: -1.110253486 | G59: 0.4370628595 | H59: -0.1584201726 | I59: 0.7160989046 | J59: 0.5712913108 | K59: 0.1487756968 | L59: -1.041698697 | M59: 0.4914408922 | N59: -0.02145614774 | O59: 0.5785671473 | P59: 0.1982292473 | R59: 3.11030411 | S59: 0 | AE59: 9.673991656
A60: 0.4557016492 | B60: -0.1112686706 | C60: 0.2372000813 | D60: -0.7153380817 | E60: 0.03678017855 | F60: -1.789338252 | G60: 0.788523972 | H60: 0.8013102543 | I60: 0.6921384931 | J60: 0.501921112 | K60: 0.7129557729 | L60: 0.5620404581 | M60: 0.08193284273 | N60: -1.392187307 | O60: 0.7956517339 | P60: 0.8261896258 | R60: 7.556507868 | S60: 0 | AE60: 57.10081116
A61: 0.661501646 | B61: 0.416564872 | C61: 0.7979633808 | D61: 0.8343687197 | E61: 0.6458051205 | F61: 0.3740195664 | G61: 0.9027807713 | H61: 1.297560341 | I61: 0.4697692394 | J61: -0.07584994667 | K61: 0.9507744312 | L61: 1.652409317 | M61: 0.1529252529 | N61: -1.023967754 | O61: 0.5864756107 | P61: 0.218488165 | R61: 6.525707732 | S61: 0 | AE61: 42.58486141
A62: 0.6846656203 | B62: 0.4807857778 | C62: 0.3324093223 | D62: -0.43326998 | E62: 0.5491380095 | F62: 0.1234838264 | G62: 0.7415899634 | H62: 0.6482549396 | I62: 0.7071284652 | J62: 0.5450151912 | K62: 0.133741796 | L62: -1.108876201 | M62: 0.1000432372 | N62: -1.281305236 | O62: 0.57527107 | P62: 0.1898102035 | R62: 4.058779571 | S62: 0 | AE62: 16.4736916
A63: 0.6309818029 | B63: 0.3344547989 | C63: 0.01636397839 | D63: -2.135404827 | E63: 0.5854161978 | F63: 0.2157692682 | G63: 0.6179236174 | H63: 0.3000319759 | I63: 0.2217963934 | J63: -0.7661403661 | K63: 0.8330696821 | L63: 0.9663668701 | M63: 0.7159036398 | N63: 0.5707151899 | O63: 0.4625834227 | P63: -0.09392737819 | R63: 6.663763519 | S63: 0 | AE63: 44.40574423
A64: 0.9321089387 | B64: 1.491683554 | C64: 0.2901225686 | D64: -0.5530266856 | E64: 0.4252510667 | F64: -0.1884777787 | G64: 0.9981389642 | H64: 2.900803531 | I64: 0.1850557923 | J64: -0.8962643683 | K64: 0.1778960824 | L64: -0.9234127212 | M64: 0.6841793656 | N64: 0.4794180309 | O64: 0.4270501733 | P64: -0.1838892394 | R64: 12.90078111 | S64: 0 | AE64: 166.4301533
A65: 0.04600048065 | B65: -1.684935786 | C65: 0.9294791222 | D65: 1.47192269 | E65: 0.4972381592 | F65: -0.00692296359 | G65: 0.267343998 | H65: -0.6208656923 | I65: 0.2109880447 | J65: -0.8029976558 | K65: 0.2524867058 | L65: -0.6666849225 | M65: 0.7692813873 | N65: 0.7364823165 | O65: 0.09193849564 | P65: -1.32891204 | R65: 8.788774575 | S65: 0 | AE65: 77.24255853
A66: 0.3400070071 | B66: -0.4124440058 | C66: 0.3170124888 | D66: -0.476069342 | E66: 0.194301784 | F66: -0.862152566 | G66: 0.917675674 | H66: 1.389605673 | I66: 0.07355993986 | J66: -1.449779995 | K66: 0.389005363 | L66: -0.2819123416 | M66: 0.2316877246 | N66: -0.7333000424 | O66: 0.1099078059 | P66: -1.227018569 | R66: 7.295703175 | S66: 0 | AE66: 53.22728481
A67: 0.4884439707 | B67: -0.02897072186 | C67: 0.1751033068 | D67: -0.9341886032 | E67: 0.3015362024 | F67: -0.5199873315 | G67: 0.5303403139 | H67: 0.07612535012 | I67: 0.6022382975 | J67: 0.2591449486 | K67: 0.8360778093 | L67: 0.978465025 | M67: 0.6288315058 | N67: 0.3287601466 | O67: 0.955597043 | P67: 1.701730427 | R67: 5.178249131 | S67: 0 | AE67: 26.81426406
A68: 0.1392634511 | B68: -1.083634467 | C68: 0.7262580991 | D68: 0.601534858 | E68: 0.5720570683 | F68: 0.1816137424 | G68: 0.1888673902 | H68: -0.8820777189 | I68: 0.8545210958 | J68: 1.056022778 | K68: 0.1124752164 | L68: -1.213469332 | M68: 0.2718117833 | N68: -0.6073426093 | O68: 0.9072378278 | P68: 1.323935869 | R68: 7.056515655 | S68: 0 | AE68: 49.79441318
A69: 0.3359138966 | B69: -0.4236408031 | C69: 0.1340119839 | D69: -1.107624616 | E69: 0.4213221073 | F69: -0.1985123609 | G69: 0.1612231731 | H69: -0.9894432017 | I69: 0.0202190876 | J69: -2.049244883 | K69: 0.8679387569 | L69: 1.116700308 | M69: 0.2771360874 | N69: -0.5913705402 | O69: 0.02368998528 | P69: -1.982887739 | R69: 12.1526959 | S69: 0 | AE69: 147.6880176
A70: 0.9861359 | B70: 2.201110531 | C70: 0.4145955443 | D70: -0.215739142 | E70: 0.5785440803 | F70: 0.19817028 | G70: 0.08784478903 | H70: -1.354146705 | I70: 0.4429859519 | J70: -0.1434030127 | K70: 0.5350808501 | L70: 0.08804828437 | M70: 0.1458677649 | N70: -1.054321978 | O70: 0.4477099776 | P70: -0.131449219 | R70: 7.921606359 | S70: 0 | AE70: 62.75184731
A71: 0.2524498701 | B71: -0.6668002388 | C71: 0.9988092184 | D71: 3.037997009 | E71: 0.9293268919 | F71: 1.47079629 | G71: 0.7144130468 | H71: 0.5663234733 | I71: 0.3526028395 | J71: -0.3783027821 | K71: 0.670556426 | L71: 0.4414501431 | M71: 0.8230589628 | N71: 0.9270856341 | O71: 0.793020606 | P71: 0.8169468756 | R71: 14.02289358 | S71: 0 | AE71: 196.6415443
A72: 0.9900680184 | B72: 2.328907564 | C72: 0.1557751298 | D72: -1.011974472 | E72: 0.5971322656 | F72: 0.245931229 | G72: 0.802908957 | H72: 0.8520576675 | I72: 0.2774997354 | J72: -0.590285184 | K72: 0.04092413187 | L72: -1.740061249 | M72: 0.1288266778 | N72: -1.131954996 | O72: 0.09247690439 | P72: -1.325655575 | R72: 13.64932178 | S72: 0 | AE72: 186.3039849
A73: 0.6050333977 | B73: 0.2663973516 | C73: 0.3935565948 | D73: -0.2700611761 | E73: 0.8707547188 | F73: 1.129965974 | G73: 0.07031917572 | H73: -1.47341803 | I73: 0.9790663719 | J73: 2.034837205 | K73: 0.03693771362 | L73: -1.787384115 | M73: 0.6369996071 | N73: 0.350450296 | O73: 0.6254434586 | P73: 0.3198090551 | R73: 11.15208205 | S73: 0 | AE73: 124.368934
A74: 0.9641777873 | B74: 1.80137099 | C74: 0.241674602 | D74: -0.7009259897 | E74: 0.9062716365 | F74: 1.318140177 | G74: 0.3568946719 | H74: -0.3667716665 | I74: 0.1330944896 | J74: -1.11188179 | K74: 0.4150468707 | L74: -0.2145813428 | M74: 0.5235525966 | N74: 0.05907194173 | O74: 0.4200374484 | P74: -0.2017976781 | R74: 6.934787735 | S74: 0 | AE74: 48.09128093
A75: 0.2121230364 | B75: =NORMINV(A75,0,1) -> -0.7990764695 | C75: 0.9504333735 | D75: =NORMINV(C75,0,1) -> 1.649070204 | E75: 0.1680680513 | F75: =NORMINV(E75,0,1) -> -0.9618278166 | G75: 0.1682497263 | H75: =NORMINV(G75,0,1) -> -0.9611048475 | I75: 0.8323260546 | J75: =NORMINV(I75,0,1) -> 0.9633978779 | K75: 0.1197696924 | L75: =NORMINV(K75,0,1) -> -1.176138877 | M75: 0.5681782961 | N75: =NORMINV(M75,0,1) -> 0.1717381299 | O75: 0.7932745218 | P75: =NORMINV(O75,0,1) -> 0.8178357941 | R75: =B75^2+D75^2+F75^2+H75^2+J75^2+L75^2+N75^2+P75^2 -> 8.216578517 | S75: 0 | AE75: =R75^2 -> 67.51216252
A76: 0.6796520352 | B76: 0.4667259943 | C76: 0.2523186803 | D76: -0.6672110082 | E76: 0.4651373029 | F76: -0.08749934538 | G76: 0.9084399343 | H76: 1.331209363 | I76: 0.4381836057 | J76: -0.1555760412 | K76: 0.6759503484 | L76: 0.4564042596 | M76: 0.5089471936 | N76: 0.02242916894 | O76: 0.5900061727 | P76: 0.227560855 | R76: 2.72757395 | S76: 0 | AE76: 7.43965965
A77: 0.0804708004 | B77: -1.401911752 | C77: 0.4996778965 | D77: -0.0008073938291 | E77: 0.76405406 | F77: 0.7194042483 | G77: 0.6026031971 | H77: 0.2600909666 | I77: 0.9474542141 | J77: 1.620655362 | K77: 0.4338610172 | L77: -0.1665526736 | M77: 0.9002025127 | N77: 1.28270635 | O77: 0.8879826069 | P77: 1.215869112 | R77: 8.328483868 | S77: 0 | AE77: 69.36364354
A78: 0.1552972198 | B78: -1.013975507 | C78: 0.9860548377 | D78: 2.198825612 | E78: 0.9844302535 | F78: 2.155285587 | G78: 0.4634117484 | H78: -0.09184209699 | I78: 0.1266126037 | J78: -1.142550645 | K78: 0.5682711005 | L78: 0.1719742169 | M78: 0.7732505202 | N78: 0.749594508 | O78: 0.617039144 | P78: 0.2977136664 | R78: 12.50219379 | S78: 0 | AE78: 156.3048497
A79: 0.03646981716 | B79: -1.793208232 | C79: 0.7790602446 | D79: 0.7690232458 | E79: 0.9094222784 | F79: 1.33720588 | G79: 0.9885910749 | H79: 2.276470737 | I79: 0.4057267904 | J79: -0.2385512368 | K79: 0.8781145811 | L79: 1.165613276 | M79: 0.9511646032 | N79: 1.656252015 | O79: 0.4984120131 | P79: -0.00398050349 | R79: 14.93617868 | S79: 0 | AE79: 223.0894336
A80: 0.2634964585 | B80: -0.632603016 | C80: 0.8311353326 | D80: 0.9586614301 | E80: 0.5635843873 | F80: 0.1600632814 | G80: 0.2777381539 | H80: -0.5895739689 | I80: 0.3061161637 | J80: -0.506889537 | K80: 0.9968629479 | L80: 2.733101254 | M80: 0.2137480378 | N80: -0.7934836772 | O80: 0.8361659646 | P80: 0.9788217302 | R80: 11.00692383 | S80: 0 | AE80: 121.1523721
A81: 0.4082832336 | B81: -0.2319633663 | C81: 0.8191361427 | D81: 0.9120778937 | E81: 0.7511835098 | F81: 0.6782187903 | G81: 0.2537417412 | H81: -0.6627612383 | I81: 0.829252243 | J81: 0.951214471 | K81: 0.9332814217 | L81: 1.500684605 | M81: 0.4745206833 | N81: -0.06391065699 | O81: 0.3147864342 | P81: -0.4823281285 | R81: 5.178514524 | S81: 0 | AE81: 26.81701268
A82: 0.1838228106 | B82: -0.9008922329 | C82: 0.1099554896 | D82: -1.226764867 | E82: 0.4256297946 | F82: -0.1875115239 | G82: 0.4828965068 | H82: -0.04288524141 | I82: 0.2744314075 | J82: -0.5994650422 | K82: 0.9335352778 | L82: 1.502649528 | M82: 0.2341338992 | N82: -0.725300338 | O82: 0.09077805281 | P82: -1.335979097 | R82: 7.281773239 | S82: 0 | AE82: 53.02422151
A83: 0.1650043726 | B83: -0.9740962623 | C83: 0.4105321169 | D83: -0.2261763889 | E83: 0.6280599833 | F83: 0.3267195219 | G83: 0.2614356279 | H83: -0.6389257189 | I83: 0.8326317072 | J83: 0.9646171911 | K83: 0.4417458773 | L83: -0.1465442576 | M83: 0.2670007944 | N83: -0.6219091794 | O83: 0.06474411488 | P83: -1.516123094 | R83: 5.152352816 | S83: 0 | AE83: 26.54673954
A84: 0.4855588078 | B84: -0.03620660966 | C84: 0.1771982312 | D84: -0.9260952882 | E84: 0.5309622884 | F84: 0.07768902658 | G84: 0.7153080106 | H84: 0.5689589786 | I84: 0.6643174291 | J84: 0.4242751748 | K84: 0.5776975751 | L84: 0.1960067921 | M84: 0.4207804799 | N84: -0.1998972262 | O84: 0.4245231748 | P84: -0.1903353565 | R84: 1.483327841 | S84: 0 | AE84: 2.200261484
A85: 0.1690981388 | B85: -0.9577352487 | C85: 0.3095118999 | D85: -0.4972343515 | E85: 0.7291767597 | F85: 0.6103250888 | G85: 0.4227216244 | H85: -0.1949357472 | I85: 0.08790040016 | J85: -1.353798099 | K85: 0.6255919933 | L85: 0.3202009365 | M85: 0.6398003101 | N85: 0.3579250821 | O85: 0.9376542568 | P85: 1.535376037 | R85: 5.995783339 | S85: 0 | AE85: 35.94941785
A86: 0.8703722358 | B86: 1.128152481 | C86: 0.3031348586 | D86: -0.5154054609 | E86: 0.1012691855 | F86: -1.274352915 | G86: 0.7808884978 | H86: 0.7751974338 | I86: 0.7487310767 | J86: 0.670501977 | K86: 0.8021602035 | L86: 0.8493625358 | M86: 0.6291641593 | N86: 0.3296404147 | O86: 0.3083562255 | P86: -0.5005150652 | R86: 5.293444975 | S86: 0 | AE86: 28.02055971
A87: 0.4483736753 | B87: -0.1297713246 | C87: 0.0880740881 | D87: -1.35271037 | E87: 0.02228438854 | F87: -2.008701712 | G87: 0.2026647329 | H87: -0.8321408155 | I87: 0.9090002775 | J87: 1.334623982 | K87: 0.2492011786 | L87: -0.6770056697 | M87: 0.6593025923 | N87: 0.4105605233 | O87: 0.4034646749 | P87: -0.2443892717 | R87: 9.041850755 | S87: 0 | AE87: 81.75506507
A88: 0.8563981652 | B88: 1.064276038 | C88: 0.6233320832 | D88: 0.3142438595 | E88: 0.3348613381 | F88: -0.4265286497 | G88: 0.6360054612 | H88: 0.347801747 | I88: 0.1874089837 | J88: -0.8874847604 | K88: 0.1653414369 | L88: -0.972739328 | M88: 0.7616973519 | N88: 0.7117730946 | O88: 0.6839962602 | P88: 0.4789032207 | R88: 4.004145667 | S88: 0 | AE88: 16.03318252
A89: 0.6437382698 | B89: 0.3684691283 | C89: 0.7848310471 | D89: 0.7886135552 | E89: 0.6077628136 | F89: 0.2734928694 | G89: 0.6774749756 | H89: 0.4606495597 | I89: 0.5120339394 | J89: 0.0301691886 | K89: 0.08263111115 | L89: -1.387589035 | M89: 0.3135828972 | N89: -0.485719869 | O89: 0.5823307037 | P89: 0.2078596028 | R89: 3.25012012 | S89: 0 | AE89: 10.56328079
A90: 0.9349772334 | B90: 1.513922356 | C90: 0.6860153079 | D90: 0.4845869336 | E90: 0.8446614146 | F90: 1.013802147 | G90: 0.2160913348 | H90: -0.785462123 | I90: 0.7461058497 | J90: 0.6622854489 | K90: 0.02113074064 | L90: -2.030936059 | M90: 0.7682167888 | N90: 0.7329868948 | O90: 0.3550397754 | P90: -0.3717492523 | R90: 9.410321524 | S90: 0 | AE90: 88.55415118
A91: 0.03898251057 | B91: -1.762617514 | C91: 0.7629190683 | D91: 0.7157238787 | E91: 0.9046565294 | F91: 1.308549664 | G91: 0.5486675501 | H91: 0.1222956211 | I91: 0.3575497866 | J91: -0.3650158522 | K91: 0.07202589512 | L91: -1.460867562 | M91: 0.01094353199 | N91: -2.292322091 | O91: 0.5712753534 | P91: 0.1796220496 | R91: 12.90071487 | S91: 0 | AE91: 166.4284441
A92: 0.9813001752 | B92: 2.081374404 | C92: 0.3783381581 | D92: -0.3098483046 | E92: 0.6000984311 | F92: 0.2536018882 | G92: 0.8931630254 | H92: 1.243526317 | I92: 0.7697389722 | J92: 0.7379874827 | K92: 0.5076583028 | L92: 0.01919769745 | M92: 0.6503780484 | N92: 0.3863413192 | O92: 0.5069802403 | P92: 0.01749776066 | R92: 6.733356864 | S92: 0 | AE92: 45.33809466
A93: 0.828846693 | B93: 0.9496175574 | C93: 0.4311897755 | D93: -0.1733458947 | E93: 0.3249909878 | F93: -0.4537872302 | G93: 0.2705042362 | H93: -0.6112886971 | I93: 0.231108427 | J93: -0.7352013876 | K93: 0.8733074665 | L93: 1.142165901 | M93: 0.06673026085 | N93: -1.500594319 | O93: 0.3841307163 | P93: -0.2946497771 | R93: 5.695084851 | S93: 0 | AE93: 32.43399146
A94: 0.9502086043 | B94: 1.646879622 | C94: 0.2628082633 | D94: -0.6347116002 | E94: 0.4041585326 | F94: -0.2425976973 | G94: 0.5934976935 | H94: 0.2365516763 | I94: 0.4406890273 | J94: -0.1492225148 | K94: 0.4462208152 | L94: -0.1352153255 | M94: 0.5012063384 | N94: 0.003023846564 | O94: 0.3873838782 | P94: -0.2861440995 | R94: 3.352319774 | S94: 0 | AE94: 11.23804787
A95: 0.5316184759 | B95: 0.07933892251 | C95: 0.7349327803 | D95: 0.6278008038 | E95: 0.3426202536 | F95: -0.4053224491 | G95: 0.1969660521 | H95: -0.8525081741 | I95: 0.968380332 | J95: 1.857505032 | K95: 0.6553982496 | L95: 0.3999362107 | M95: 0.0846799612 | N95: -1.374263407 | O95: 0.411010623 | P95: -0.2249460481 | R95: 6.840959539 | S95: 0 | AE95: 46.79872741
A96: 0.1384020448 | B96: -1.087526736 | C96: 0.605119288 | D96: 0.2666204299 | E96: 0.1868420243 | F96: -0.8895937774 | G96: 0.8567147851 | H96: 1.065675338 | I96: 0.1035071015 | J96: -1.261818224 | K96: 0.4316135049 | L96: -0.1722677847 | M96: 0.8610535264 | N96: 1.08506482 | O96: 0.4274716973 | P96: -0.1828147247 | R96: 6.013490176 | S96: 0 | AE96: 36.1620641
A97: 0.7025117874 | B97: 0.5316384554 | C97: 0.5723795891 | D97: 0.1824356866 | E97: 0.1128559113 | F97: -1.211479146 | G97: 0.9045071602 | H97: 1.307668772 | I97: 0.9810247421 | J97: 2.075388796 | K97: 0.3292250633 | L97: -0.4420540051 | M97: 0.38904953 | N97: -0.2817971452 | O97: 0.5535645485 | P97: 0.1346723911 | R97: 8.093798246 | S97: 0 | AE97: 65.50957005
A98: 0.5443012118 | B98: 0.1112758866 | C98: 0.6246392131 | D98: 0.3176880538 | E98: 0.6462766528 | F98: 0.3752874558 | G98: 0.3675143123 | H98: -0.3384439955 | I98: 0.1872779727 | J98: -0.8879717539 | K98: 0.6451184154 | L98: 0.3721741795 | M98: 0.9212114215 | N98: 1.413267259 | O98: 0.3363577724 | P98: -0.4224240252 | R98: 3.471466892 | S98: 0 | AE98: 12.05108238
A99: 0.3540769815 | B99: -0.3743365224 | C99: 0.543238759 | D99: 0.1085965694 | E99: 0.04912722111 | F99: -1.653375616 | G99: 0.09684002399 | H99: -1.299769307 | I99: 0.989599824 | J99: 2.311588842 | K99: 0.6087542772 | L99: 0.2760737193 | M99: 0.9137760401 | N99: 1.364380252 | O99: 0.4422627687 | P99: -0.1452347408 | R99: 11.8772585 | S99: 0 | AE99: 141.0692696
A100: 0.1068175435 | B100: -1.243631854 | C100: 0.7488048673 | D100: 0.670733582 | E100: 0.01873713732 | F100: -2.080559168 | G100: 0.7413213849 | H100: 0.6474245209 | I100: 0.5068896413 | J100: 0.01727062817 | K100: 0.1713989377 | L100: -0.9486515263 | M100: 0.3564313054 | N100: -0.3680142472 | O100: 0.9491937757 | P100: 1.637086252 | R100: 10.46011256 | S100: 0 | AE100: 109.4139548
A101: 0.7398922443 | B101: 0.6430132361 | C101: 0.6855123043 | D101: 0.4831694975 | E101: 0.01292252541 | F101: -2.228532136 | G101: 0.7480018139 | H101: 0.6682149838 | I101: 0.619754076 | J101: 0.3048349675 | K101: 0.560308218 | L101: 0.1517507043 | M101: 0.2049181461 | N101: -0.824181755 | O101: 0.3919627666 | P101: -0.2742070204 | R101: 6.930203221 | S101: 0 | AE101: 48.02771668
A102: 0.8542789817 | B102: 1.05496346 | C102: 0.902672708 | D102: 1.296932003 | E102: 0.008820950985 | F102: -2.373049447 | G102: 0.5950869918 | H102: 0.2406504876 | I102: 0.9744591117 | J102: 1.950792145 | K102: 0.8505505919 | L102: 1.038797733 | M102: 0.8175997138 | N102: 0.9062556149 | O102: 0.8604697585 | P102: 1.082432299 | R102: 15.3619065 | S102: 0 | AE102: 235.9881714
A103: 0.4077862501 | B103: -0.2332432796 | C103: 0.1068433523 | D103: -1.243491681 | E103: 0.02326190472 | F103: -1.990609733 | G103: 0.3899520636 | H103: -0.2794439754 | I103: 0.7679489851 | J103: 0.7321090183 | K103: 0.5464128256 | L103: 0.116603393 | M103: 0.4426287413 | N103: -0.1443077199 | O103: 0.00200688839 | P103: -2.87707697 | R103: 14.48926661 | S103: 0 | AE103: 209.9388469
A104: 0.2447620034 | B104: -0.6910660936 | C104: 0.1148758531 | D104: -1.200998699 | E104: 0.1610303521 | F104: -0.9902320628 | G104: 0.1844950318 | H104: -0.8983667373 | I104: 0.002164423466 | J104: -2.8531479 | K104: 0.9465580583 | L104: 1.612358806 | M104: 0.3658204675 | N104: -0.3429435409 | O104: 0.1237211823 | P104: -1.156583994 | R104: 15.90304322 | S104: 0 | AE104: 252.9067837
A105: 0.6788420677 | B105: 0.4644632763 | C105: 0.66664505 | D105: 0.4306678484 | E105: 0.6419510841 | F105: 0.3636788593 | G105: 0.7009515762 | H105: 0.5271393138 | I105: 0.8929629326 | J105: 1.242440353 | K105: 0.7204265594 | L105: 0.5841091471 | M105: 0.6389088631 | N105: 0.3555437519 | O105: 0.5571012497 | P105: 0.1436238573 | R105: 2.843219798 | S105: 0 | AE105: 8.08389882
A106: 0.2290799022 | B106: -0.7418803962 | C106: 0.9712373614 | D106: 1.899298217 | E106: 0.2040106654 | F106: -0.8273806742 | G106: 0.1388255954 | H106: -1.085610865 | I106: 0.1277329326 | J106: -1.137173255 | K106: 0.1634084582 | L106: -0.9805455102 | M106: 0.3791529536 | N106: -0.3077061925 | O106: 0.5488922 | P106: 0.1228629814 | R106: 8.385240893 | S106: 0 | AE106: 70.31226484
A107: 0.9584323168 | B107: 1.732776696 | C107: 0.1152607203 | D107: -1.19901673 | E107: 0.4408665895 | F107: -0.1487724643 | G107: 0.8009725809 | H107: 0.8451003048 | I107: 0.6394263506 | J107: 0.3569258744 | K107: 0.4782005548 | L107: -0.0546703269 | M107: 0.4173928499 | N107: -0.2085677356 | O107: 0.6352258921 | P107: 0.3457265678 | R107: 5.469896252 | S107: 0 | AE107: 29.91976501
A108: 0.817677319 | B108: 0.9065489619 | C108: 0.6972897649 | D108: 0.5166214054 | E108: 0.1486948133 | F108: -1.042047566 | G108: 0.07472449541 | H108: -1.44148047 | I108: 0.6438358426 | J108: 0.3687308994 | K108: 0.7901108861 | L108: 0.806806059 | M108: 0.7132566571 | N108: 0.5629239281 | O108: 0.3786051869 | P108: -0.3091461249 | R108: 5.451810942 | S108: 0 | AE108: 29.72224254
A109: 0.535535574 | B109: 0.08919259271 | C109: 0.3464052677 | D109: -0.3950438382 | E109: 0.2075221539 | F109: -0.8150489213 | G109: 0.9103901386 | H109: 1.343161384 | I109: 0.4496381283 | J109: -0.1265756675 | K109: 0.5230200291 | L109: 0.05773471421 | M109: 0.03141474724 | N109: -1.860396182 | O109: 0.578826189 | P109: 0.1988914959 | R109: 6.152388677 | S109: 0 | AE109: 37.85188644
A110: 0.1826810241 | B110: -0.9051950795 | C110: 0.9009508491 | D110: 1.286988484 | E110: 0.1716040969 | F110: -0.947845342 | G110: 0.1201290488 | H110: -1.174341923 | I110: 0.2626389861 | J110: -0.6352306866 | K110: 0.005872189999 | L110: -2.519733248 | M110: 0.1471919417 | N110: -1.04855303 | O110: 0.3745865226 | P110: -0.3197299614 | R110: 12.7074716 | S110: 0 | AE110: 161.4798346
A111: 0.7765840292 | B111: 0.7607072532 | C111: 0.6691378355 | D111: 0.4375337174 | E111: 0.7951663733 | F111: 0.824479334 | G111: 0.2782047987 | H111: -0.5881828054 | I111: 0.06991326809 | J111: -1.476437298 | K111: 0.4500769377 | L111: -0.1254669664 | M111: 0.5266059637 | N111: 0.0667407754 | O111: 0.7355355024 | P111: 0.6296417597 | R111: 4.392348594 | S111: 0 | AE111: 19.29272618
A112: 0.5763569474 | B112: 0.1925823036 | C112: 0.2566056848 | D112: -0.6538454684 | E112: 0.5645552278 | F112: 0.1625286808 | G112: 0.6296001077 | H112: 0.3307944086 | I112: 0.09675985575 | J112: -1.300237121 | K112: 0.6266790032 | L112: 0.3230703117 | M112: 0.3956270814 | N112: -0.2646823663 | O112: 0.5954986215 | P112: 0.2417127401 | R112: 2.523915154 | S112: 0 | AE112: 6.370147705
A113: 0.870092392 | B113: 1.126827985 | C113: 0.2556157112 | D113: -0.6569214542 | E113: 0.7736616135 | F113: 0.7509599269 | G113: 0.536046505 | H113: 0.09047848532 | I113: 0.107711792 | J113: -1.238789174 | K113: 0.006723880768 | L113: -2.471685893 | M113: 0.2042741776 | N113: -0.8264509083 | O113: 0.6246790886 | P113: 0.317793182 | R113: 10.70125766 | S113: 0 | AE113: 114.5169154
A114: 0.5972234607 | B114: 0.2461668465 | C114: 0.6618449092 | D114: 0.417503477 | E114: 0.2820236087 | F114: -0.5768404857 | G114: 0.6223103404 | H114: 0.3115542351 | I114: 0.4878808856 | J114: -0.03038278863 | K114: 0.8245360255 | L114: 0.9327908838 | M114: 0.2187015414 | N114: -0.776585968 | O114: 0.3974282146 | P114: -0.2600095214 | R114: 2.206430921 | S114: 0 | AE114: 4.868337408
A115: 0.5283180475 | B115: 0.07104253249 | C115: 0.1708794832 | D115: -0.9506955133 | E115: 0.287394166 | F115: -0.5610135032 | G115: 0.8842097521 | H115: 1.19629747 | I115: 0.04579889774 | J115: -1.687028898 | K115: 0.4347592592 | L115: -0.1642701003 | M115: 0.7918134928 | N115: 0.8127297604 | O115: 0.4358092546 | P115: -0.1616029815 | R115: 6.214429142 | S115: 0 | AE115: 38.61912956
A116: 0.5850709081 | B116: 0.2148834559 | C116: 0.6481092572 | D116: 0.380220847 | E116: 0.8674128652 | F116: 1.114244593 | G116: 0.7239387631 | H116: 0.59458266 | I116: 0.4642689824 | J116: -0.0896844606 | K116: 0.6006105542 | L116: 0.2549277645 | M116: 0.4107955098 | N116: -0.2254991075 | O116: 0.4382808805 | P116: -0.1553292454 | R116: 1.933820834 | S116: 0 | AE116: 3.739663018
A117: 0.3022024632 | B117: -0.5180764561 | C117: 0.6409194469 | D117: 0.3609175199 | E117: 0.7764656544 | F117: 0.7603110284 | G117: 0.7659699917 | H117: 0.7256391458 | I117: 0.3696863651 | J117: -0.33268413 | K117: 0.550993681 | L117: 0.1281722779 | M117: 0.9763958454 | N117: 1.984426546 | O117: 0.5155217648 | P117: 0.03891711578 | R117: 5.569859821 | S117: 0 | AE117: 31.02333842
A118: 0.1761373878 | B118: -0.9301860266 | C118: 0.07649034262 | D118: -1.429081934 | E118: 0.7894806266 | F118: 0.8046204338 | G118: 0.6437215209 | H118: 0.3684241964 | I118: 0.8584513068 | J118: 1.073387286 | K118: 0.04353326559 | L118: -1.711078995 | M118: 0.6994556785 | N118: 0.5228356292 | O118: 0.7173318267 | P118: 0.5749333903 | R118: 8.374528743 | S118: 0 | AE118: 70.13273166
A119: 0.4158438444 | B119: -0.2125375466 | C119: 0.4652732611 | D119: -0.08715724674 | E119: 0.4674156904 | F119: -0.08176777653 | G119: 0.9364312887 | H119: 1.525488007 | I119: 0.7146052122 | J119: 0.5668890331 | K119: 0.4723476171 | L119: -0.06936984121 | M119: 0.2081936598 | N119: -0.8127048156 | O119: 0.7488034964 | P119: 0.6707292789 | R119: 3.823110458 | S119: 0 | AE119: 14.61617357
A120: 0.299690783 | B120: -0.5252900603 | C120: 0.3999376893 | D120: -0.25350839 | E120: 0.4701705575 | F120: -0.07484113196 | G120: 0.4679089189 | H120: -0.08052735879 | I120: 0.3662973046 | J120: -0.3416761677 | K120: 0.6541052461 | L120: 0.3964277365 | M120: 0.8357272744 | N120: 0.9770478756 | O120: 0.9311829209 | P120: 1.484659074 | R120: 3.785014673 | S120: 0 | AE120: 14.32633608
A121: 0.2767510414 | B121: -0.5925205218 | C121: 0.7304048538 | D121: 0.6140378855 | E121: 0.7897257805 | F121: 0.8054701256 | G121: 0.08215522766 | H121: -1.390719654 | I121: 0.1882596016 | J121: -0.8843279524 | K121: 0.1417303085 | L121: -1.072577739 | M121: 0.9293837547 | N121: 1.471216817 | O121: 0.9911613464 | P121: 2.372308854 | R121: 13.03579353 | S121: 0 | AE121: 169.9319129
A122: 0.1472670436 | B122: -1.048226884 | C122: 0.02312201262 | D122: -1.993159127 | E122: 0.5351006389 | F122: 0.08809808015 | G122: 0.3008787036 | H122: -0.5218749406 | I122: 0.07875698805 | J122: -1.413482252 | K122: 0.2676612735 | L122: -0.6199016385 | M122: 0.4071423411 | N122: -0.2349021481 | O122: 0.6773759723 | P122: 0.4603736352 | R122: 8.000910651 | S122: 0 | AE122: 64.01457125
A123: 0.06812870502 | B123: -1.489873844 | C123: 0.2301145792 | D123: -0.7384695597 | E123: 0.1243544817 | F123: -1.153490869 | G123: 0.3978210688 | H123: -0.258991061 | I123: 0.2756119967 | J123: -0.5959270027 | K123: 0.06094992161 | L123: -1.546848246 | M123: 0.6351824999 | N123: 0.3456111035 | O123: 0.9577823877 | P123: 1.725512103 | R123: 10.00738646 | S123: 0 | AE123: 100.1477837
A124: 0.8958147168 | B124: 1.258058594 | C124: 0.5412047505 | D124: 0.1034693187 | E124: 0.0679576993 | F124: -1.491175598 | G124: 0.03515559435 | H124: -1.809900693 | I124: 0.2675054669 | J124: -0.6203749906 | K124: 0.3553393483 | L124: -0.3709447323 | M124: 0.1546142697 | N124: -1.016842124 | O124: 0.2869122624 | P124: -0.5624278847 | R124: 8.965520661 | S124: 0 | AE124: 80.38056072
A125: 0.07944369316 | B125: -1.408823426 | C125: 0.2492306232 | D125: -0.6769128564 | E125: 0.5405538082 | F125: 0.101829029 | G125: 0.7761671543 | H125: 0.7593124171 | I125: 0.9819495678 | J125: 2.095789543 | K125: 0.8869049549 | L125: 1.210231458 | M125: 0.4231622219 | N125: -0.1938102718 | O125: 0.225975275 | P125: -0.7521671431 | R125: 9.490230782 | S125: 0 | AE125: 90.06448029
A126: 0.215995729 | B126: -0.7857884096 | C126: 0.888763845 | D126: 1.219980387 | E126: 0.9000481963 | F126: 1.281826239 | G126: 0.2815870643 | H126: -0.5781332968 | I126: 0.4557437301 | J126: -0.1111625351 | K126: 0.735506475 | L126: 0.6295530492 | M126: 0.8244885802 | N126: 0.9326071516 | O126: 0.3169283271 | P126: -0.4763056312 | R126: 5.58844949 | S126: 0 | AE126: 31.23076771
A127: 0.681522727 | B127: 0.4719611124 | C127: 0.6168316603 | D127: 0.2971700588 | E127: 0.4272168875 | F127: -0.1834642399 | G127: 0.5174635649 | H127: 0.04378865519 | I127: 0.1204818487 | J127: -1.172581436 | K127: 0.7973068953 | L127: 0.8320402789 | M127: 0.9370988607 | N127: 1.530866952 | O127: 0.2571429014 | P127: -0.6521788491 | R127: 5.182763033 | S127: 0 | AE127: 26.86103266
A128: 0.8468924165 | B128: 1.023196035 | C128: 0.680125773 | D128: 0.4680505314 | E128: 0.2162552476 | F128: -0.784902911 | G128: 0.7409253716 | H128: 0.6462009001 | I128: 0.05540567636 | J128: -1.59455692 | K128: 0.976590693 | L128: 1.987937398 | M128: 0.8369999528 | N128: 0.9822025037 | O128: 0.984777987 | P128: 2.164264886 | R128: 14.44292073 | S128: 0 | AE128: 208.5979593
A129: 0.1024312973 | B129: -1.267819002 | C129: 0.1852507591 | D129: -0.8955343383 | E129: 0.1750068665 | F129: -0.934562654 | G129: 0.7147660255 | H129: 0.5673624606 | I129: 0.9007196426 | J129: 1.285662956 | K129: 0.782184124 | L129: 0.7795908354 | M129: 0.8616008759 | N129: 1.087539961 | O129: 0.5945363045 | P129: 0.2392298069 | R129: 7.105319464 | S129: 0 | AE129: 50.48556468
A130: 0.7683708072 | B130: 0.7334920324 | C130: 0.272353828 | D130: -0.605709528 | E130: 0.008651912212 | F130: -2.380187638 | G130: 0.5480658412 | H130: 0.12077618 | I130: 0.1020213962 | J130: -1.270117462 | K130: 0.02256935835 | L130: -2.003359487 | M130: 0.302385509 | N130: -0.517551801 | O130: 0.07477062941 | P130: -1.441153723 | R130: 14.55620619 | S130: 0 | AE130: 211.8831387
A131: 0.4103838205 | B131: -0.2265577597 | C131: 0.1411105394 | D131: -1.075343251 | E131: 0.3155170679 | F131: -0.4802718033 | G131: 0.7212010622 | H131: 0.5864132005 | I131: 0.2238851786 | J131: -0.7591374191 | K131: 0.2674170732 | L131: -0.6206435991 | M131: 0.3737694025 | N131: -0.321886336 | O131: 0.6430398226 | P131: 0.3665960503 | R131: 2.981724548 | S131: 0 | AE131: 8.890681282
A132: 0.7523501515 | B132: 0.6819039352 | C132: 0.3321426511 | D132: -0.4340043225 | E132: 0.1590207219 | F132: -0.9984907579 | G132: 0.3701913953 | H132: -0.3313464744 | I132: 0.8684867024 | J132: 1.11926619 | K132: 0.8223636746 | L132: 0.9244104601 | M132: 0.1659043431 | N132: -0.9704771961 | O132: 0.09881573915 | P132: -1.288328954 | R132: 6.469035993 | S132: 0 | AE132: 41.84842668
A133: 0.3599350452 | B133: -0.3586324198 | C133: 0.8046395779 | D133: 0.8583108419 | E133: 0.7737123966 | F133: 0.7511286969 | G133: 0.3555324078 | H133: -0.3704263876 | I133: 0.3416035175 | J133: -0.4080907714 | K133: 0.7265546322 | L133: 0.6024258074 | M133: 0.208139658 | N133: -0.812893161 | O133: 0.6872375011 | P133: 0.4880350741 | R133: 2.995153198 | S133: 0 | AE133: 8.970942678
A134: 0.324228704 | B134: -0.455906232 | C134: 0.9378690124 | D134: 1.537127968 | E134: 0.1815294623 | F134: -0.9095518062 | G134: 0.2900733352 | H134: -0.5531704924 | I134: 0.3889889121 | J134: -0.2819552497 | K134: 0.9943894744 | L134: 2.535738432 | M134: 0.5130133033 | N134: 0.03262530081 | O134: 0.74222368 | P134: 0.6502161043 | R134: 10.63720852 | S134: 0 | AE134: 113.150205
A135: 0.007702708244 | B135: -2.422705343 | C135: 0.8235200644 | D135: 0.9288634221 | E135: 0.1399019957 | F135: -1.080759763 | G135: 0.7522586584 | H135: 0.6816145958 | I135: 0.7841252089 | J135: 0.7862012698 | K135: 0.1871618032 | L135: -0.8884037546 | M135: 0.2411535978 | N135: -0.702596578 | O135: 0.05401074886 | P135: -1.607149861 | R135: 12.84887485 | S135: 0 | AE135: 165.093585
A136: 0.415715754 | B136: -0.2128659674 | C136: 0.498048842 | D136: -0.004890847427 | E136: 0.9068132043 | F136: 1.3213833 | G136: 0.7557783723 | H136: 0.6927869622 | I136: 0.1743388772 | J136: -0.937157098 | K136: 0.8075142503 | L136: 0.8687726426 | M136: 0.3159490228 | N136: -0.4790570471 | O136: 0.8759127259 | P136: 1.154794602 | R136: 5.467419 | S136: 0 | AE136: 29.89267052
A137: 0.2538714409 | B137: -0.6623563334 | C137: 0.9175167084 | D137: 1.388560015 | E137: 0.1174931526 | F137: -1.187612007 | G137: 0.01249217987 | H137: -2.241644465 | I137: 0.7143301964 | J137: 0.5660796928 | K137: 0.7879486084 | L137: 0.7993236254 | M137: 0.7514138222 | N137: 0.6789455616 | O137: 0.575917244 | P137: 0.1914596223 | R137: 10.25919535 | S137: 0 | AE137: 105.2510893
A138: 0.2403199077 | B138: -0.7052738749 | C138: 0.01745051146 | D138: -2.109504907 | E138: 0.638712585 | F138: 0.3550197037 | G138: 0.1280319095 | H138: -1.135743764 | I138: 0.6499592662 | J138: 0.3852104959 | K138: 0.009670436382 | L138: -2.338894914 | M138: 0.1529662013 | N138: -1.023794386 | O138: 0.6662723422 | P138: 0.4296430509 | R138: 13.21493972 | S138: 0 | AE138: 174.6346318
A139: 0.7157279253 | B139: =NORMINV(A139,0,1) -> 0.5701969133 | C139: 0.5801368952 | D139: =NORMINV(C139,0,1) -> 0.2022437021 | E139: 0.5527764559 | F139: =NORMINV(E139,0,1) -> 0.1326792065 | G139: 0.06186926365 | H139: =NORMINV(G139,0,1) -> -1.539269457 | I139: 0.1137629747 | J139: =NORMINV(I139,0,1) -> -1.206756457 | K139: 0.7929302454 | L139: =NORMINV(K139,0,1) -> 0.8166306932 | M139: 0.7619687319 | N139: =NORMINV(M139,0,1) -> 0.712649721 | O139: 0.7616010904 | P139: =NORMINV(O139,0,1) -> 0.7114622768 | R139: =B139^2+D139^2+F139^2+H139^2+J139^2+L139^2+N139^2+P139^2 -> 5.890176299 | S139: 0 | AE139: =R139^2 -> 34.69417683
A140: 0.1727436185 | B140: -0.9433786943 | C140: 0.4921143651 | D140: -0.01976764273 | E140: 0.5649183393 | F140: 0.1634510369 | G140: 0.6064875722 | H140: 0.2701759999 | I140: 0.09777909517 | J140: -1.294310502 | K140: 0.2853749394 | L140: -0.5669474589 | M140: 0.6814821362 | N140: 0.4718473825 | O140: 0.5639327168 | P140: 0.1609477337 | R140: 3.235278655 | S140: 0 | AE140: 10.46702798
A141: 0.5894773006 | B141: 0.2262006068 | C141: 0.3935720921 | D141: -0.2700208878 | E141: 0.7029922009 | F141: 0.5330259771 | G141: 0.3717415333 | H141: -0.3272443669 | I141: 0.4569489956 | J141: -0.1081231671 | K141: 0.718868494 | L141: 0.579483448 | M141: 0.1208789349 | N141: -1.170604296 | O141: 0.3294842243 | P141: -0.4413378221 | R141: 2.427868739 | S141: 0 | AE141: 5.894546614
A142: 0.663433969 | B142: 0.4218533502 | C142: 0.464528501 | D142: -0.08903134154 | E142: 0.4527720809 | F142: -0.1186607146 | G142: 0.5661529899 | H142: 0.1665882746 | I142: 0.1332845092 | J142: -1.110998446 | K142: 0.3734049201 | L142: -0.3228486851 | M142: 0.8963775039 | N142: 1.261177253 | O142: 0.2026905417 | P142: -0.8320493606 | R142: 3.849141868 | S142: 0 | AE142: 14.81589312
A143: 0.4065908194 | B143: -0.2363235183 | C143: 0.8631705046 | D143: 1.094675123 | E143: 0.6489280462 | F143: 0.3824280234 | G143: 0.4498986006 | H143: -0.1259175364 | I143: 0.7802423239 | J143: 0.773011876 | K143: 0.4822443724 | L143: -0.044521462 | M143: 0.2263149023 | N143: -0.7510379705 | O143: 0.01098906994 | P143: -2.290745457 | R143: 7.827371153 | S143: 0 | AE143: 61.26773917
A144: 0.4695397019 | B144: -0.07642698196 | C144: 0.02021080256 | D144: -2.049414453 | E144: 0.9114733338 | F144: 1.349883571 | G144: 0.585221827 | H144: 0.2152706053 | I144: 0.9989758134 | J144: 3.083127574 | K144: 0.1258798242 | L144: -1.14608581 | M144: 0.4547033906 | N144: -0.1137868271 | O144: 0.4898410439 | P144: -0.02546747921 | R144: 16.90725213 | S144: 0 | AE144: 285.8551746
A145: 0.8409347534 | B145: 0.9983070436 | C145: 0.9276909828 | D145: 1.45880773 | E145: 0.008297920227 | F145: -2.395541389 | G145: 0.2570719719 | H145: -0.6523987915 | I145: 0.3014545441 | J145: -0.5202216631 | K145: 0.722012043 | L145: 0.5888291131 | M145: 0.5524358749 | N145: 0.1318179984 | O145: 0.7795424461 | P145: 0.7706488333 | R145: 10.51760559 | S145: 0 | AE145: 110.6200273
A146: 0.7335245013 | B146: 0.6235076186 | C146: 0.7569472194 | D146: 0.6965162867 | E146: 0.7519428134 | F146: 0.6806162006 | G146: 0.6955620646 | H146: 0.5116787357 | I146: 0.2054807544 | J146: -0.8222027591 | K146: 0.03999966383 | L146: -1.750689972 | M146: 0.5980445743 | N146: 0.2482889455 | O146: 0.4191662669 | P146: -0.2040268284 | R146: 5.443157333 | S146: 0 | AE146: 29.62796175
A147: 0.9729305506 | B147: 1.925723573 | C147: 0.5515881777 | D147: 0.1296748964 | E147: 0.3561521769 | F147: -0.3687630429 | G147: 0.9554702044 | H147: 1.700379362 | I147: 0.9965149164 | J147: 2.698266237 | K147: 0.7043839693 | L147: 0.5370514703 | M147: 0.3823000193 | N147: -0.2994456459 | O147: 0.9116107225 | P147: 1.350740559 | R147: 16.23573573 | S147: 0 | AE147: 263.5991148
A148: 0.6906865239 | B148: 0.4977972532 | C148: 0.5079362988 | D148: 0.01989466339 | E148: 0.2255919576 | F148: -0.7534427276 | G148: 0.6371105313 | H148: 0.3507459665 | I148: 0.3015740514 | J148: -0.5198787277 | K148: 0.04368954897 | L148: -1.709388023 | M148: 0.4537890553 | N148: -0.1160939158 | O148: 0.3878296018 | P148: -0.2849803407 | R148: 4.225869477 | S148: 0 | AE148: 17.85797284
A149: 0.6669962406 | B149: 0.431633896 | C149: 0.05557894707 | D149: -1.593010239 | E149: 0.008569002151 | F149: -2.383733585 | G149: 0.6455953121 | H149: 0.3734556122 | I149: 0.7894117832 | J149: 0.8043819305 | K149: 0.4658973217 | L149: -0.08558711275 | M149: 0.4040558338 | N149: -0.2428628214 | O149: 0.5360162258 | P149: 0.09040227568 | R149: 9.267154707 | S149: 0 | AE149: 85.88015636
A150: 0.03683418036 | B150: -1.78866762 | C150: 0.8500899673 | D150: 1.036819329 | E150: 0.1732487082 | F150: -0.9414048746 | G150: 0.1474236846 | H150: -1.047546995 | I150: 0.8043531775 | J150: 0.8572736909 | K150: 0.5664004683 | L150: 0.1672173119 | M150: 0.7465538383 | N150: 0.6636844037 | O150: 0.04842656851 | P150: -1.660304868 | R150: 10.21789307 | S150: 0 | AE150: 104.4053388
A151: 0.9685190916 | B151: 1.859461039 | C151: 0.09174001217 | D151: -1.330116092 | E151: 0.07587707043 | F151: -1.43336295 | G151: 0.9975904226 | H151: 2.818879889 | I151: 0.261665225 | J151: -0.6382200458 | K151: 0.1010116339 | L151: -1.275808371 | M151: 0.07666480541 | N151: -1.427868851 | O151: 0.5777848959 | P151: 0.1962299229 | R151: 19.33974481 | S151: 0 | AE151: 374.0257295
A152: 0.2373681664 | B152: -0.7147940167 | C152: 0.678740561 | D152: 0.4641798759 | E152: 0.3654895425 | F152: -0.3438234216 | G152: 0.5676346421 | H152: 0.1703553101 | I152: 0.5708203912 | J152: 0.1784632022 | K152: 0.1763163209 | L152: -0.9294949487 | M152: 0.2010169625 | N152: -0.8379942639 | O152: 0.9774418473 | P152: 2.003568478 | R152: 6.485959927 | S152: 0 | AE152: 42.06767617
A153: 0.6766095161 | B153: 0.458238688 | C153: 0.4193868637 | D153: -0.2034622772 | E153: 0.9416594505 | F153: 1.568857705 | G153: 0.9333686829 | H153: 1.50135938 | I153: 0.03758096695 | J153: -1.779474915 | K153: 0.350487709 | L153: -0.3840040873 | M153: 0.9214053154 | N153: 1.414587864 | O153: 0.2527751923 | P153: -0.6657821051 | R153: 10.72508883 | S153: 0 | AE153: 115.0275304
A154: 0.3090197444 | B154: -0.4986308201 | C154: 0.380004108 | D154: -0.3054699992 | E154: 0.5656277537 | F154: 0.1652534551 | G154: 0.296066463 | H154: -0.535747709 | I154: 0.142121017 | J154: -1.070838541 | K154: 0.3152171969 | L154: -0.4811155261 | M154: 0.1674057841 | N154: -0.9644675531 | O154: 0.6913625598 | P154: 0.4997162618 | R154: 3.214360261 | S154: 0 | AE154: 10.33211189
A155: 0.4988862276 | B155: -0.002791816997 | C155: 0.8879839182 | D155: 1.215875995 | E155: 0.5737887621 | F155: 0.1860284182 | G155: 0.7657734156 | H155: 0.7249981443 | I155: 0.2515355349 | J155: -0.6696654679 | K155: 0.8967977762 | L155: 1.263514198 | M155: 0.1454077959 | N155: -1.056334122 | O155: 0.5193382502 | P155: 0.04849280349 | R155: 5.201704408 | S155: 0 | AE155: 27.05772875
A156: 0.8554952741 | B156: 1.060297114 | C156: 0.3820498586 | D156: -0.3001015235 | E156: 0.09660798311 | F156: -1.30112414 | G156: 0.8707516789 | H156: 1.129951546 | I156: 0.8416879773 | J156: 1.00141949 | K156: 0.9122489095 | L156: 1.35473444 | M156: 0.2508915067 | N156: -0.6716869463 | O156: 0.7916978002 | P156: 0.8123263412 | R156: 8.133189252 | S156: 0 | AE156: 66.14876741
A157: 0.4445426464 | B157: -0.1394617333 | C157: 0.2833359241 | D157: -0.5729598958 | E157: 0.3237435818 | F157: -0.4572558441 | G157: 0.4510195255 | H157: -0.1230859322 | I157: 0.7535426617 | J157: 0.685680388 | K157: 0.02281689644 | L157: -1.99876494 | M157: 0.2534711361 | N157: -0.663606381 | O157: 0.1432592869 | P157: -1.065790019 | R157: 6.613466344 | S157: 0 | AE157: 43.73793709
A158: 0.3882769942 | B158: -0.2838126125 | C158: 0.1165260673 | D158: -1.192533471 | E158: 0.9430570006 | F158: 1.580965183 | G158: 0.7121080756 | H158: 0.5595537651 | I158: 0.6585425735 | J158: 0.4084887978 | K158: 0.9078487754 | L158: 1.327623706 | M158: 0.9761399627 | N158: 1.979852771 | O158: 0.2701544166 | P158: -0.6123460424 | R158: 10.53946948 | S158: 0 | AE158: 111.0804169
A159: 0.3619445562 | B159: -0.3532658932 | C159: 0.9433106184 | D159: 1.583187375 | E159: 0.1204560995 | F159: -1.172709803 | G159: 0.8606661558 | H159: 1.083317121 | I159: 0.9593509436 | J159: 1.743203279 | K159: 0.540045619 | L159: 0.1005486493 | M159: 0.5544103384 | N159: 0.1368120949 | O159: 0.282230258 | P159: -0.5762288372 | R159: 8.579728247 | S159: 0 | AE159: 73.6117368
A160: 0.2138300538 | B160: -0.7932020598 | C160: 0.6713920236 | D160: 0.4437602185 | E160: 0.6697407365 | F160: 0.4391973749 | G160: 0.8070207238 | H160: 0.8669698083 | I160: 0.1970015168 | J160: -0.8523803304 | K160: 0.9690776467 | L160: 1.867407476 | M160: 0.7682686448 | N160: 0.7331569473 | O160: 0.2552190423 | P160: -0.6581557045 | R160: 6.955074574 | S160: 0 | AE160: 48.37306232
A161: 0.7770090103 | B161: 0.7621307373 | C161: 0.2993426323 | D161: -0.5262921094 | E161: 0.2149410248 | F161: -0.7893935072 | G161: 0.229370594 | H161: -0.7409212535 | I161: 0.5013227463 | J161: 0.003315639293 | K161: 0.1426138878 | L161: -1.068649188 | M161: 0.7181854248 | N161: 0.5774594107 | O161: 0.7461037636 | P161: 0.6622789374 | R161: 3.9440279 | S161: 0 | AE161: 15.55535608
A162: 0.4184657931 | B162: -0.2058199125 | C162: 0.6664063334 | D162: 0.4300114212 | E162: 0.6876775622 | F162: 0.4892780264 | G162: 0.8655802608 | H162: 1.10573906 | I162: 0.2240402102 | J162: -0.7586191388 | K162: 0.927608192 | L162: 1.45820656 | M162: 0.7814599872 | N162: 0.7771334755 | O162: 0.7313963771 | P162: 0.6170416626 | R162: 5.375869737 | S162: 0 | AE162: 28.89997543
A163: 0.4386144876 | B163: -0.1544829227 | C163: 0.749968648 | D163: 0.6743910928 | E163: 0.8819557428 | F163: 1.184820275 | G163: 0.1846734285 | H163: -0.897697473 | I163: 0.08634436131 | J163: -1.363615146 | K163: 0.5933161974 | L163: 0.2360838505 | M163: 0.7900615931 | N163: 0.8066349809 | O163: 0.3391782045 | P163: -0.4147069977 | R163: 5.426151895 | S163: 0 | AE163: 29.44312438
A164: 0.7321112752 | B164: 0.6192108734 | C164: 0.1325214505 | D164: -1.114550946 | E164: 0.6491578221 | F164: 0.3830477554 | G164: 0.7317274213 | H164: 0.6180457864 | I164: 0.5955622792 | J164: 0.2418770398 | K164: 0.7216194272 | L164: 0.587659082 | M164: 0.3564808965 | N164: -0.3678812349 | O164: 0.01235371828 | P164: -2.245946475 | R164: 7.737811963 | S164: 0 | AE164: 59.87373398
A165: 0.2272922993 | B165: -0.7477937069 | C165: 0.5226438046 | D165: 0.05679011176 | E165: 0.734941721 | F165: 0.6278280968 | G165: 0.01506495476 | H165: -2.168378377 | I165: 0.2170174122 | J165: -0.7823058931 | K165: 0.3979279995 | L165: -0.2587138935 | M165: 0.3180506229 | N165: -0.473156898 | O165: 0.9407641888 | P165: 1.561220972 | R165: 8.998677211 | S165: 0 | AE165: 80.97619154
A166: 0.3022350669 | B166: -0.5179829952 | C166: 0.4264344573 | D166: -0.1854591543 | E166: 0.002919614315 | F166: -2.756675398 | G166: 0.07905381918 | H166: -1.411464696 | I166: 0.5928253531 | J166: 0.2348189052 | K166: 0.8728474975 | L166: 1.139955106 | M166: 0.1383585334 | N166: -1.087723779 | O166: 0.9992217422 | P166: 3.163934971 | R166: 22.4424584 | S166: 0 | AE166: 503.663939
A167: 0.3334492445 | B167: -0.4304085334 | C167: 0.4300893545 | D167: -0.1761466798 | E167: 0.5604971647 | F167: 0.1522298258 | G167: 0.08258283138 | H167: -1.387906026 | I167: 0.6823815107 | J167: 0.4743687429 | K167: 0.874053359 | L167: 1.145762871 | M167: 0.4998835325 | N167: -0.0002919406723 | O167: 0.2302821875 | P167: -0.7379178439 | R167: 4.248057304 | S167: 0 | AE167: 18.04599086
A168: 0.6591792703 | B168: 0.4102242419 | C168: 0.4615440965 | D168: -0.09654442462 | E168: 0.9907308221 | F168: 2.354686151 | G168: 0.6730089784 | H168: 0.4482371651 | I168: 0.9502730966 | J168: 1.647507349 | K168: 0.7800427079 | L168: 0.7723374601 | M168: 0.1354623437 | N168: -1.100935598 | O168: 0.5053015351 | P168: 0.01328936901 | R168: 10.4460896 | S168: 0 | AE168: 109.1207878
A169: 0.8613715172 | B169: 1.086501979 | C169: 0.6774215698 | D169: 0.4605007123 | E169: 0.8286309242 | F169: 0.9487689217 | G169: 0.5361909866 | H169: 0.09084213855 | I169: 0.9744181633 | J169: 1.95010443 | K169: 0.7707538605 | L169: 0.7413318097 | M169: 0.5057644844 | N169: 0.01444992244 | O169: 0.2131414413 | P169: -0.7955684981 | R169: 7.286580392 | S169: 0 | AE169: 53.09425382
A170: 0.4041478038 | B170: -0.2426253937 | C170: 0.7865640521 | D170: 0.7945558726 | E170: 0.6166273952 | F170: 0.29663497 | G170: 0.7307636142 | H170: 0.6151240936 | I170: 0.1060234904 | J170: -1.247956519 | K170: 0.3600828052 | L170: -0.3582374675 | M170: 0.2512423396 | N170: -0.6705854105 | O170: 0.178427875 | P170: -0.9213729428 | R170: 4.140898522 | S170: 0 | AE170: 17.14704057
A171: 0.2652598619 | B171: -0.6272128458 | C171: 0.1263118982 | D171: -1.143999615 | E171: 0.2850476503 | F171: -0.5679111497 | G171: 0.7321897745 | H171: 0.6194492409 | I171: 0.03658592701 | J171: -1.791757284 | K171: 0.8452087641 | L171: 1.016098524 | M171: 0.383155942 | N171: -0.2972025385 | O171: 0.9536501169 | P171: 1.681325198 | R171: 9.566405654 | S171: 0 | AE171: 91.51611714
A172: 0.4011009336 | B172: -0.2504984967 | C172: 0.2930424809 | D172: -0.5445181503 | E172: 0.3700578809 | F172: -0.3317000515 | G172: 0.1599791646 | H172: -0.9945435194 | I172: 0.4562633634 | J172: -0.10985203 | K172: 0.8179925084 | L172: 0.907741177 | M172: 0.069873631 | N172: -1.476732853 | O172: 0.8022387624 | P172: 0.8496450181 | R172: 5.197089338 | S172: 0 | AE172: 27.00973759
A173: 0.2735459805 | B173: -0.6021234578 | C173: 0.6724283695 | D173: 0.4466285739 | E173: 0.281714201 | F173: -0.5777566862 | G173: 0.01790738106 | H173: -2.099024261 | I173: 0.0006368160248 | J173: -3.221855828 | K173: 0.05265641212 | L173: -1.619625147 | M173: 0.1998450756 | N173: -0.8421747392 | O173: 0.1712067127 | P173: -0.9494074447 | R173: 19.91590876 | S173: 0 | AE173: 396.6434219
A174: 0.5038060546 | B174: 0.009540508785 | C174: 0.5830377936 | D174: 0.2096710619 | E174: 0.7341842055 | F174: 0.6255173133 | G174: 0.7077335715 | H174: 0.5467756747 | I174: 0.6447991729 | J174: 0.3713167089 | K174: 0.5771192908 | L174: 0.1945293479 | M174: 0.9270572066 | N174: 1.454219044 | O174: 0.007601201534 | P174: -2.427521087 | R174: 8.917617943 | S174: 0 | AE174: 79.52390979
A175: 0.2077401876 | B175: -0.8142873143 | C175: 0.6424082518 | D175: 0.3649034265 | E175: 0.7519572973 | F175: 0.6806619698 | G175: 0.7849224806 | H175: 0.7889263758 | I175: 0.8179639578 | J175: 0.9076331301 | K175: 0.2558668852 | L175: -0.6561404342 | M175: 0.331541419 | N175: -0.4356608176 | O175: 0.6060227156 | P175: 0.2689676608 | R175: 3.398386003 | S175: 0 | AE175: 11.54902743
A176: 0.09929472208 | B176: -1.285580677 | C176: 0.278200686 | D176: -0.5881950613 | E176: 0.7605887055 | F176: 0.7081975476 | G176: 0.300853312 | H176: -0.5219478744 | I176: 0.1690140367 | J176: -0.9580687874 | K176: 0.6507154107 | L176: 0.3872526463 | M176: 0.5472269654 | N176: 0.1186583072 | O176: 0.6754432321 | P176: 0.4549940271 | R176: 4.061624228 | S176: 0 | AE176: 16.49679137
A177: 0.852060318 | B177: 1.045310765 | C177: 0.3666119576 | D177: -0.3408401604 | E177: 0.9863424301 | F177: 2.206984535 | G177: 0.9480681419 | H177: 1.626404115 | I177: 0.9417304993 | J177: 1.569467694 | K177: 0.6103959084 | L177: 0.2803510563 | M177: 0.05025577545 | N177: -1.642378678 | O177: 0.3106265068 | P177: -0.4940752823 | R177: 14.20816136 | S177: 0 | AE177: 201.8718491
A178: 0.9989759326 | B178: 3.083162212 | C178: 0.8015124202 | D178: 0.8470358137 | E178: 0.2416374087 | F178: -0.7010451843 | G178: 0.1089016795 | H178: -1.232390202 | I178: 0.8334810138 | J178: 0.9680128094 | K178: 0.9861761928 | L178: 2.202250559 | M178: 0.7784129977 | N178: 0.7668444502 | O178: 0.5622422099 | P178: 0.1566564892 | R178: 18.63315685 | S178: 0 | AE178: 347.1945341
A179: 0.2800918818 | B179: -0.5825685778 | C179: 0.3339082003 | D179: -0.4291467936 | E179: 0.6155840158 | F179: 0.293903075 | G179: 0.2564669847 | H179: -0.6542760555 | I179: 0.4660297632 | J179: -0.0852539177 | K179: 0.03187000751 | L179: -1.853994024 | M179: 0.8197103739 | N179: 0.9142618868 | O179: 0.2733985186 | P179: -0.6025666122 | R179: 5.681532682 | S179: 0 | AE179: 32.27981362
A180: 0.4586556554 | B180: -0.1038211136 | C180: 0.4129293561 | D180: -0.2200159764 | E180: 0.2617495656 | F180: -0.6379609024 | G180: 0.1110733151 | H180: -1.220839935 | I180: 0.832482636 | J180: 0.9640223353 | K180: 0.5631845593 | L180: 0.1590482225 | M180: 0.2060111165 | N180: -0.8203401342 | O180: 0.9294193387 | P180: 1.47148011 | R180: 5.749477163 | S180: 0 | AE180: 33.05648765
A181: 0.2947294712 | B181: -0.5396202589 | C181: 0.5847404003 | D181: 0.2140357234 | E181: 0.4567368031 | F181: -0.1086581886 | G181: 0.09284758568 | H181: -1.323421724 | I181: 0.3783266544 | J181: -0.3098785582 | K181: 0.4015529156 | L181: -0.2493296071 | M181: 0.9540302753 | N181: 1.68525466 | O181: 0.03038764 | P181: -1.87512681 | R181: 8.614626773 | S181: 0 | AE181: 74.21179444
A182: 0.3587126136 | B182: -0.3619020511 | C182: 0.5301837325 | D182: 0.07573172573 | E182: 0.1588234305 | F182: -0.9993052126 | G182: 0.1982449889 | H182: -0.8479066194 | I182: 0.4926866889 | J182: -0.01833277925 | K182: 0.2770118117 | L182: -0.5917416175 | M182: 0.6767086387 | N182: 0.4585146739 | O182: 0.207890451 | P182: -0.8137627091 | R182: 3.077204617 | S182: 0 | AE182: 9.469188258
A183: 0.3876494169 | B183: -0.2854507465 | C183: 0.2487243414 | D183: -0.678509531 | E183: 0.1289185286 | F183: -1.131518177 | G183: 0.6673921347 | H183: 0.4327233962 | I183: 0.831430316 | J183: 0.9598328069 | K183: 0.4164432287 | L183: -0.211001043 | M183: 0.5459660292 | N183: 0.1154758748 | O183: 0.1716588736 | P183: -0.9476301983 | R183: 3.886578363 | S183: 0 | AE183: 15.10549137
A184: 0.8256803155 | B184: 0.9372317349 | C184: 0.6159906983 | D184: 0.2949676356 | E184: 0.1770682931 | F184: -0.9265955116 | G184: 0.09143263102 | H184: -1.331984561 | I184: 0.9572282434 | J184: 1.719389278 | K184: 0.8882246614 | L184: 1.217140727 | M184: 0.01381641626 | N184: -2.202459988 | O184: 0.9790230393 | P184: 2.033976932 | R184: 17.02379454 | S184: 0 | AE184: 289.8095805
A185: 0.374563694 | B185: -0.3197901856 | C185: 0.3830270767 | D185: -0.2975401584 | E185: 0.5948138237 | F185: 0.2399456993 | G185: 0.7623653412 | H185: 0.7139318563 | I185: 0.5912480354 | J185: 0.2307565618 | K185: 0.2401533127 | L185: -0.7058094808 | M185: 0.8208975792 | N185: 0.9187911132 | O185: 0.8984222412 | P185: 1.272612678 | R185: 3.773204294 | S185: 0 | AE185: 14.23707065
A186: 0.8264853358 | B186: 0.940367029 | C186: 0.1629115939 | D186: -0.9825617292 | E186: 0.3424927592 | F186: -0.4056694142 | G186: 0.607904613 | H186: 0.2738618714 | I186: 0.3424479365 | J186: -0.4057914069 | K186: 0.570048511 | L186: 0.1764976714 | M186: 0.4552571177 | N186: -0.112389935 | O186: 0.8032495379 | P186: 0.8532856352 | R186: 3.025831666 | S186: 0 | AE186: 9.15565727
A187: 0.1125050783 | B187: -1.213313047 | C187: 0.5177770853 | D187: 0.0445753018 | E187: 0.03420937061 | F187: -1.822238922 | G187: 0.4337745905 | H187: -0.166772343 | I187: 0.06657040119 | J187: -1.501830836 | K187: 0.360819459 | L187: -0.3562692734 | M187: 0.3228694201 | N187: -0.4596898722 | O187: 0.03719294071 | P187: -1.784232573 | R187: 10.59970752 | S187: 0 | AE187: 112.3537995
A188: 0.5165918469 | B188: 0.04160158949 | C188: 0.5571234822 | D188: 0.1436801639 | E188: 0.3422992826 | F188: -0.4061960378 | G188: 0.05620127916 | H188: -1.587486252 | I188: 0.1485365033 | J188: -1.042730762 | K188: 0.8346369863 | L188: 0.972652526 | M188: 0.5954597592 | N188: 0.2416124405 | O188: 0.6775868535 | P188: 0.4609614083 | R188: 5.011684871 | S188: 0 | AE188: 25.11698524
A189: 0.9553935528 | B189: 1.699564384 | C189: 0.5647556782 | D189: 0.1630378369 | E189: 0.7058103085 | F189: 0.5411860045 | G189: 0.3263113499 | H189: -0.4501216875 | I189: 0.5771377087 | J189: 0.1945763966 | K189: 0.3122932911 | L189: -0.4893603779 | M189: 0.5889070034 | N189: 0.2247342824 | O189: 0.1672327518 | P189: -0.965158352 | R189: 4.669961952 | S189: 0 | AE189: 21.80854463
A190: 0.3733024001 | B190: -0.3231194242 | C190: 0.8523449302 | D190: 1.04654357 | E190: 0.4394349456 | F190: -0.1524019855 | G190: 0.7913107276 | H190: 0.8109775822 | I190: 0.9553355575 | J190: 1.698948513 | K190: 0.8694977164 | L190: 1.124019939 | M190: 0.8624104857 | N190: 1.091213319 | O190: 0.1533121467 | P190: -1.022330942 | R190: 8.266324548 | S190: 0 | AE190: 68.33212154
A191: 0.8541339636 | B191: 1.054329531 | C191: 0.9956196547 | D191: 2.621254219 | E191: 0.7035878897 | F191: 0.5347478617 | G191: 0.5078238249 | H191: 0.01961267795 | I191: 0.7662376165 | J191: 0.7265123049 | K191: 0.1648644209 | L191: -0.9746601992 | M191: 0.2178643942 | N191: -0.7794260418 | O191: 0.7675226927 | P191: 0.7307127687 | R191: 10.88815311 | S191: 0 | AE191: 118.5518782
A192: 0.3954649568 | B192: -0.2651032633 | C192: 0.7351680398 | D192: 0.6285191276 | E192: 0.703548491 | F192: 0.5346339278 | G192: 0.2112508416 | H192: -0.8020886444 | I192: 0.6845446229 | J192: 0.4804453498 | K192: 0.5653243661 | L192: 0.164482569 | M192: 0.8111096025 | N192: 0.8819926257 | O192: 0.3950448632 | P192: -0.2661941003 | R192: 2.501148205 | S192: 0 | AE192: 6.255742342
A193: 0.2574949265 | B193: -0.6510877358 | C193: 0.4459052086 | D193: -0.1360137423 | E193: 0.7639083862 | F193: 0.7189313363 | G193: 0.9795708656 | H193: 2.044965406 | I193: 0.314084053 | J193: -0.4843068629 | K193: 0.9417643547 | L193: 1.569758565 | M193: 0.4900531769 | N193: -0.02493557192 | O193: 0.5395169258 | P193: 0.09921678467 | R193: 7.850321601 | S193: 0 | AE193: 61.62754923
A194: 0.9008361697 | B194: 1.286330735 | C194: 0.2130467296 | D194: -0.7958943266 | E194: 0.08960360289 | F194: -1.343200049 | G194: 0.7263075709 | H194: 0.6016834656 | I194: 0.959584415 | J194: 1.745883658 | K194: 0.7664849162 | L194: 0.7273196432 | M194: 0.7646848559 | N194: 0.7214539101 | O194: 0.7124850154 | P194: 0.5606590779 | R194: 8.86624186 | S194: 0 | AE194: 78.61024471
A195: 0.2200189829 | B195: -0.7721291047 | C195: 0.1510630846 | D195: -1.031884625 | E195: 0.5296932459 | F195: 0.07449878461 | G195: 0.268507123 | H195: -0.617334302 | I195: 0.3582273722 | J195: -0.3632009951 | K195: 0.3677016497 | L195: -0.3379467728 | M195: 0.9439026117 | N195: 1.588405049 | O195: 0.3119279146 | P195: -0.4903929998 | R195: 5.057259821 | S195: 0 | AE195: 25.5758769
A196: 0.7023509145 | B196: 0.5311740538 | C196: 0.8061912656 | D196: 0.8639461579 | E196: 0.145398438 | F196: -1.056375103 | G196: 0.4821794629 | H196: -0.04468432781 | I196: 0.3443663716 | J196: -0.4005754231 | K196: 0.5254161954 | L196: 0.06375211265 | M196: 0.5844109654 | N196: 0.2131908958 | O196: 0.346057713 | P196: -0.3959859054 | R196: 2.513254084 | S196: 0 | AE196: 6.316446089
A197: 0.3732140064 | B197: -0.323352877 | C197: 0.8707749844 | D197: 1.130062164 | E197: 0.9278604984 | F197: 1.460040283 | G197: 0.7578494549 | H197: 0.6994015968 | I197: 0.27724576 | J197: -0.5910431344 | K197: 0.6056783199 | L197: 0.2680726988 | M197: 0.565901041 | N197: 0.1659479424 | O197: 0.1837928295 | P197: -0.9010050042 | R197: 5.263021495 | S197: 0 | AE197: 27.69939526
A198: 0.6945480704 | B198: 0.5087836812 | C198: 0.2746190429 | D198: -0.5989022278 | E198: 0.3792414069 | F198: -0.3074737324 | G198: 0.8682784438 | H198: 1.118290103 | I198: 0.4922184348 | J198: -0.01950672835 | K198: 0.3921746612 | L198: -0.2736555731 | M198: 0.5998854041 | N198: 0.2530504969 | O198: 0.5377139449 | P198: 0.09467608986 | R198: 2.110923565 | S198: 0 | AE198: 4.455998297
A199: 0.6662758589 | B199: 0.4296527182 | C199: 0.2078012228 | D199: -0.8140741989 | E199: 0.5662974119 | F199: 0.1669553565 | G199: 0.6621745825 | H199: 0.4184052687 | I199: 0.7439678907 | J199: 0.6556268917 | K199: 0.8883374929 | L199: 1.217734153 | M199: 0.5000685453 | N199: 0.0001718176919 | O199: 0.8120712042 | P199: 0.8855545881 | R199: 3.747185366 | S199: 0 | AE199: 14.04139817
A200: 0.1314025521 | B200: -1.119785677 | C200: 0.1616116166 | D200: -0.9878558852 | E200: 0.5690332055 | F200: 0.1739133141 | G200: 0.09243685007 | H200: -1.325897352 | I200: 0.4862170815 | J200: -0.03455552891 | K200: 0.02039343119 | L200: -2.045690181 | M200: 0.9806104302 | N200: 2.066522825 | O200: 0.16813761 | P200: -0.9615509511 | R200: 13.39916806 | S200: 0 | AE200: 179.5377047
A201: 0.0325922966 | B201: -1.84399003 | C201: 0.4776096344 | D201: -0.05615382073 | E201: 0.306614399 | F201: -0.505469952 | G201: 0.8032979965 | H201: 0.8534604576 | I201: 0.2044768333 | J201: -0.8257363513 | K201: 0.2000923157 | L201: -0.8412915356 | M201: 0.4332108498 | N201: -0.1682053916 | O201: 2.384185791e-05 | P201: -4.066699255 | R201: 22.34329496 | S201: 0 | AE201: 499.2228297
A202: 0.1268135905 | B202: -1.141583511 | C202: 0.6848279834 | D202: 0.481242676 | E202: 0.544005096 | F202: 0.1105290555 | G202: 0.3532707095 | H202: -0.3765051076 | I202: 0.9021756053 | J202: 1.294048151 | K202: 0.6208955646 | L202: 0.3078337081 | M202: 0.08023136854 | N202: -1.403516964 | O202: 0.4916087985 | P202: -0.02103517409 | R202: 5.428404748 | S202: 0 | AE202: 29.46757811
A203: 0.3882781267 | B203: =NORMINV(A203,0,1) -> -0.2838096571 | C203: 0.5350357294 | D203: =NORMINV(C203,0,1) -> 0.08793474482 | E203: 0.4189301729 | F203: =NORMINV(E203,0,1) -> -0.204631112 | G203: 0.5931841135 | H203: =NORMINV(G203,0,1) -> 0.2357434226 | I203: 0.1891452074 | J203: =NORMINV(I203,0,1) -> -0.8810506341 | K203: 0.4162861109 | L203: =NORMINV(K203,0,1) -> -0.2114037616 | M203: 0.06220448017 | N203: =NORMINV(M203,0,1) -> -1.5365279 | O203: 0.9926229715 | P203: =NORMINV(O203,0,1) -> 2.438360381 | R203: =B203^2+D203^2+F203^2+H203^2+J203^2+L203^2+N203^2+P203^2 -> 9.3131904 | S203: 0 | AE203: =R203^2 -> 86.73551542
A204: 0.1589992642 | B204: -0.998579307 | C204: 0.7563241124 | D204: 0.6945269989 | E204: 0.2203634381 | F204: -0.7709663518 | G204: 0.3914492726 | H204: -0.2755437151 | I204: 0.3755386472 | J204: -0.317219184 | K204: 0.04421359301 | L204: -1.703753299 | M204: 0.5346811414 | N204: 0.08704251625 | O204: 0.7497733235 | P204: 0.6737766014 | R204: 5.614796463 | S204: 0 | AE204: 31.52593932
A205: 0.6189916134 | B205: 0.3028334723 | C205: 0.2142241001 | D205: -0.7918499037 | E205: 0.9749381542 | F205: 1.958906894 | G205: 0.880137682 | H205: 1.175675341 | I205: 0.1119515896 | J205: -1.216214611 | K205: 0.5556337833 | L205: 0.1399083127 | M205: 0.2995631695 | N205: -0.525657297 | O205: 0.1352436543 | P205: -1.101941032 | R205: 8.927605056 | S205: 0 | AE205: 79.70213204
A206: 0.6100472808 | B206: 0.2794422665 | C206: 0.1627287269 | D206: -0.9833047892 | E206: 0.9220904708 | F206: 1.419274311 | G206: 0.4511207938 | H206: -0.1228301641 | I206: 0.7034329772 | J206: 0.5342999228 | K206: 0.5232653022 | L206: 0.05835055924 | M206: 0.14548105 | N206: -1.056013384 | O206: 0.6955685019 | P206: 0.5116971285 | R206: 4.740282523 | S206: 0 | AE206: 22.4702784
A207: 0.4612821341 | B207: -0.09720415544 | C207: 0.2881010771 | D207: -0.5589407547 | E207: 0.3855041265 | F207: -0.2910563106 | G207: 0.5645264387 | H207: 0.1624555584 | I207: 0.4643281698 | J207: -0.08953550289 | K207: 0.05219447613 | L207: -1.623938418 | M207: 0.1235355139 | N207: -1.157492926 | O207: 0.8018864393 | P207: 0.8483786635 | R207: 5.137697821 | S207: 0 | AE207: 26.3959389
... 803 more rows

Sheet Sheet2

Sheet Sheet3
